Workbook

Sheet Resumo
A1: Ministério do Desenvolvimento Regional-MDR Companhia de Desenvolvimento dos Vales do São Francisco e do Parnaíba 3ª Superintendência Regional da CODEVASF- 3ªSR Gerência Regional de Administração e Suporte Logístico-3ªGRA Planilha de custos- Resumo Discriminação dos Serviços
A7: Serviços de Limpeza, Conservação, Copa, Eletricista, Manutenção Predial, Supervisão e Recepção para SEDE 3ª Superintendência Regional da Codevasf e suas Unidades Descentralizadas.
A8: Os salarios estão baseados na Convenção Coletiva de Trabalho 2022/2022 do SEAC-PE (Sindicato das Empresas de Asseio e Conservação). Conforme Anexo III (Tabela de Salários) da CCT 2022/2022.
A9: VALOR MENSAL E GLOBAL DOS SERVIÇOS-3ªSR
A10: ITEM | B10: CÓDIGO CATSER | C10: POSTO DE SERVIÇO | F10: DESCRIÇÃO SUMÁRIA | G10: QTDE DE POSTOS | H10: VALOR UNITÁRIO POSTO (R$) | J10: VALOR TOTAL MENSAL (R$) | L10: Nº DE MESES | M10: VALOR ANUAL (R$)
A11: 1 | B11: 25194 | C11: ASG | F11: Conservam a limpeza de logradouros públicos por meio de coleta de lixo, varreções, lavagens, pintura de guias, aparo de gramas etc. Lavam vidros de janelas e fachadas de edifícios e limpam recintos e acessórios dos mesmos. Executam instalações, reparos de manutenção e serviços de manutenção em dependências de edificações. Atendem transeuntes, visitantes e moradores, prestando-lhes informações. Zelam pela segurança do patrimônio e das pessoas, solicitando meios e tomando providências para a realização dos serviços | G11: 14 | H11: =ASG!J120 -> 4308.72 | J11: =G11*H11 -> 60322.08 | L11: 12 | M11: =J11*L11 -> 723864.96
C12: Copeira | F12: Atendem os clientes, recepcionando-os e servindo refeições e bebidas em restaurantes, bares, clubes, cantinas, hotéis, eventos e hospitais; montam e desmontam praças, carrinhos, mesas, balcões e bares; organizam, conferem e controlam materiais de trabalho, bebidas e alimentos, listas de espera, a limpeza e higiene e a segurança do local de trabalho; preparam alimentos e bebidas. | G12: 1 | H12: =Copeira!J120 -> 5238.43 | J12: =(G12*H12) -> 5238.43 | L12: 12 | M12: =J12*L12 -> 62861.16
C13: Recepcionista | F13: Recepcionam e prestam serviços de apoio a clientes, pacientes, hóspedes, visitantes e passageiros; prestam atendimento telefônico e fornecem informações em escritórios, consultórios, hoteis, hospitais, bancos, aeroportos e outros estabelecimentos; marcam entrevistas ou consultas e recebem clientes ou visitantes; averiguam suas necessidades e dirigem ao lugar ou a pessoa procurados; agendam serviços, reservam (hotéis e passagens) e indicam acomodações em hotéis e estabelecimentos similares; observam normas internas de segurança, conferindo documentos e idoneidade dos clientes e notificando seguranças sobre presenças estranhas; fecham contas e estadas de clientes. Organizam informações e planejam o trabalho do cotidiano. | G13: 3 | H13: =Recepcionista!J120 -> 3884.97 | J13: =(G13*H13) -> 11654.91 | L13: 12 | M13: 139858.92
C14: Eletricista | F14: Montam, ajustam, instalam, e repararam aparelhos e equipamentos elétricos , tais como motores, dínamos, instrumentos, aparelhos transmissores e receptores de sinais, aparelhos eletro-doméstico, computadores, equipamentos auxiliares, aparelhos de controle e regulagem de corrente. Fazem instalações elétricas, telefônicas e telegráficas e seu equipamento auxiliar. Executam outras tarefas de mesma natureza e nível de complexidade associadas ao ambiente organizacional. | G14: 1 | H14: =Eletricista!J120 -> 6245.59 | J14: =(G14*H14) -> 6245.59 | L14: 12 | M14: 74947.08
C15: Ajudante de Manutenção | F15: Executam manutenções elétrica e hidráulica, substituindo, trocando, limpando, reparando e instalando peças, componentes e equipamentos. Realizam manutenção de carpintaria e marcenaria, consertando móveis, substituindo e ajustando portas e janelas, trocando peças e reparando pisos e assoalhos. Conservam alvenaria e fachadas e recuperam pinturas, impermeabilizam superfícies, lavando, preparando e aplicando produtos. Montam equipamentos de trabalho e segurança, inspecionando local e instalando peças e componentes em equipamentos. Executam serviços gerais em residências. Requisitos exigidos: Formação de nível médio ou quivalente; Experiência minima de 1 ano e Habilitação profissional. | G15: 2 | H15: =AMP!J120 -> 4218.12 | J15: =(G15*H15) -> 8436.24 | L15: 12 | M15: 101234.88
C16: Almoxarife | F16: Coordenam a entrada e saída de mercadoria, fazem registro e inventário de materiais permanentes ou de consumo, para controle interno de forma a indentificar itens defeituosos e enviá-los para reparo. Conferem se os produtos recebidos estão de acordo com o que foi solicitado, em quantidade e integridade. Manipulam softwares e planilhas para facililar a execução dos seus serviços. Também são responsáveis por classificar os produtos de acordo com seu tipo e alocá-los no espaço adequado dando a devida atenção a materiais perecíveis ou de alta periculosidade (produtos químicos ou explosivos, por exemplo). Tomam as providências caso identifique alguma irregularidade observando se a sua equipe está utilizando os equipamentos de segurança exigidos para cada tipo de manuseio de forma a garantir o cumprimento das normas e regulamentos do almoxarifado. | G16: 1 | H16: =Almoxarife!J120 -> 4039.04 | J16: =G16*H16 -> 4039.04 | L16: 12 | M16: 48468.48
C17: Apoio Técnico Administrativo II | F17: Apoiam atividades administrativas setoriais, atendem a fornecedores e clientes, coletando informações para auxiliar a tomada de decisão dos gestores. Manuseiam documentos técnicos diversos de forma a dar a devido tratamento e destinação. Auxiliam na operacionalização de relatórios, planilhas e demais rotinas administrativas compatíveis com o cargo. | G17: 1 | H17: ='Apoio Téc. ADM II'!J120 -> 6677.98 | J17: =G17*H17 -> 6677.98 | L17: 12 | M17: 80135.76
C18: Encarregado | F18: Garantem a qualidade dos serviços de limpeza e conservação executados, virificando o atendimento das áreas e o cumprimento dos serviços dentro da frequência exigida neste termo de referência, acompanham, orientam e controlam o uso dos materiais e equipamentos de forma a garantir a preservação e economicidade dos mesmos, monitorando a conduta dos funcionários, orientando-os quanto ao armazenamento e acondionamento dos materiais, de forma a garantir o melhor aproveitamento dos recursos, acompanhando o desempenho dos funcionários e executam outras tarefas compatíveis com as exigências para o exercício da função. | G18: 1 | H18: =Encarregado!J120 -> 4322.54 | J18: =H18*G18 -> 4322.54 | L18: 12 | M18: 51870.48
A19: TOTAL 3ªSR | G19: =SUM(G11:G18) -> 24 | J19: =SUM(J11:K18) -> 106936.81 | M19: =SUM(M11:N18) -> 1283241.72
A20: Petrolina, Novembro/ 2022.

Sheet Encarregado
A1: Companhia de Desenvolvimento dos Vales do São Francisco e do Parnaíba 3ª Superintendência Regional da CODEVASF-3ªSR Gerência Regional de Administração e Suporte Logístico-3ªGRA Planilha de Custos e Formação de Preços
A7: DISCRIMINAÇÃO DOS SERVIÇOS
A8: 1 | B8: Data de Apresentação da Proposta | I8: 2022-11-18
A9: 2 | B9: Município/UF | I9: PETROLINA/PE
A10: 3 | B10: Ano - Acordo, Convenção Coletiva ou Sentença Normativa em Dissídio | I10: SIEMACO/SEAC - PERNAMBUCO- 2022
A11: 4 | B11: Convenção/Acordo Coletivo de Trabalho - Nº do processo e Registro no MTE | I11: PE000091/2022 13623.100419/2022-07
A12: 5 | B12: Vigência da Convenção | I12: 01 de janeiro/2022 a 31 de dezembro/2022
A13: 6 | B13: Nº de Meses de Execução Contratual | I13: 12
A15: IDENTIFICAÇÃO DOS SERVIÇOS
A16: 1 | B16: Tipo de Serviço | I16: LIMPEZA E CONSERVAÇÃO
A17: 2 | B17: Unidade de Medida | I17: POSTO
A18: 3 | B18: Quantidade a Contratar em Função da Unidade de Medida | I18: 1
A19: 4 | B19: Categoria profissional | I19: ENCARREGADO - ITEM 90
A20: 5 | B20: Salário Normativo da Categoria Profissional | I20: 1537.76
A22: MÓDULO 1 - COMPOSIÇÃO DA REMUNERAÇÃO
A23: A | B23: Salário Base | I23: =I20 -> 1537.76
A24: B | B24: Adicional de Periculosidade | I24: 0
A25: C | B25: Adicional de insalubridade | I25: 0
A26: D | B26: Adicional Noturno | I26: 0
A27: E | B27: Hora Noturna Adicional | I27: 0
A28: F | B28: Adicional de Hora Extra | I28: 0
A29: G | B29: Intervalo Intrajornada | I29: 0
A30: H | B30: Outros | I30: 0
A31: Remuneração Total | I31: =SUM(I23:I30) -> 1537.76
A33: MÓDULO 2 - ENCARGOS E BENEFÍCIOS ANUAIS, MENSAIS E DIÁRIOS
A34: SUBMÓDULO 2.1 - 13º (Décimo terceiro) Salário, Férias e Adicional de Férias
A35: 2.1 | B35: 13º (Décimo terceiro) Salário e Adicional de Férias | I35: % | J35: VALOR
A36: A | B36: 13º (décimo terceiro) Salário | I36: 0.0833 | J36: =I31*I36 -> 128.1
A37: B | B37: Férias e Adicional de Férias | I37: 0.1111 | J37: =I31*I37 -> 170.85
A38: Total | J38: =SUM(J36:J37) -> 298.95
A40: SUBMÓDULO 2.2 - Encargos Previdenciários (GPS), Fundo de Garantia por Tempo de Serviço (FGTS) e outras contribuições.
A41: 2.2 | B41: GPS, FGTS e outras contribuições | I41: % | J41: VALOR
A42: A | B42: INSS | I42: 0.2 | J42: =($I$31+$J$38)*I42 -> 367.34
A43: B | B43: Salário Educação | I43: 0.025 | J43: 45.92
A44: C | B44: Seguro Acidente do Trabalho/SAT/INSS | I44: 0.03 | J44: 55.1
A45: D | B45: SESI/SESC | I45: 0.015 | J45: 27.55
A46: E | B46: SENAI/SENAC | I46: 0.01 | J46: 18.37
A47: F | B47: INCRA | I47: 0.002 | J47: 3.67
A48: G | B48: FGTS | I48: 0.08 | J48: 146.94
A49: H | B49: SEBRAE | I49: 0.006 | J49: 11.02
A50: Total | I50: =SUM(I42:I49) -> 0.368 | J50: =SUM(J42:J49) -> 675.91
A52: SUBMÓDULO 2.3 - Benefícios Mensais e Diários.
A53: 2.3 | B53: Benefícios Mensais e Diários | I53: % | J53: VALOR
A54: A | B54: Auxílio Alimentação - Cláusula 9º e 11º da CCT (R$ 8,42 * 22 dias) | J54: =(22*8.42) -> 185.24
A55: B | B55: Vale Transporte - Cláusula 12ª da CCT (4,10 - valor da passagem x 2 = 8,20 x 26 - Dias trabalhados) | J55: =(8.2*26) -> 213.2
A56: C | B56: Desconto Legal sobre Vale Transporte - Cláusula 12ª da CCT, (6% - seis por cento). | J56: =(-6%*I20) -> -92.27
A57: D | B57: Auxílio Saúde/Assistência Médica - Cláusula 13ª da CCT | J57: 66.15
A58: Total | J58: =SUM(J54:J57) -> 372.32
A60: Quadro-Resumo do Módulo 2 - Encargos e Benefícios anuais, mensais e diários
A61: 2 | B61: Encargos e Benefícios Anuais, Mensais e Diários | J61: VALOR
A62: 2.1 | B62: 13º (décimo terceiro) Salário, Férias e Adicional de Férias | J62: =J38 -> 298.95
A63: 2.2 | B63: GPS, FGTS e outras contribuições | J63: =J50 -> 675.91
A64: 2.3 | B64: Benefícios Mensais e Diários | J64: =J58 -> 372.32
A65: Total | J65: =SUM(J62:J64) -> 1347.18
A67: Módulo 3 - Provisão para Rescisão | L67: GPS
A68: 3 | B68: Provisão para Rescisão | J68: VALOR
A69: A | B69: Aviso prévio indenizado | J69: =M69 -> 80.61 | K69: =I31+J65-L69 -> 2355.97 | L69: =(I31+J38)*0.288 -> 528.97 | M69: =K69/12*0.4106 -> 80.61
A70: B | B70: Multa do FGTS e contribuição social sobre o Aviso Prévio Indenizado | J70: =L70 -> 30.17 | K70: =J48 -> 146.94 | L70: =(K70*0.4+K70*0.1)*0.4106 -> 30.17 | M70: =K70*0.5*0.4106 -> 30.17
A71: C | B71: Aviso Prévio Trabalhado | J71: 98.71 | K71: =I31+J65 -> 2884.94 | L71: =K71/12*0.4106 -> 98.71
A72: D | B72: Multa do FGTS e contribuição social sobre o Aviso Prévio Trabalhado | J72: 30.17 | K72: =J48 -> 146.94 | L72: =(K72*0.4+K72*0.1)*0.4106 -> 30.17 | M72: =K72*0.5*0.4106 -> 30.17
A73: E | B73: Demissão com Justa Causa | J73: =N73 -> -3.74 | K73: =J36 -> 128.1 | L73: =J37 -> 170.85 | M73: =K73+L73 -> 298.95 | N73: =-M73*0.0125 -> -3.74
A74: Total | J74: =SUM(J69:J73) -> 235.92
A77: Módulo 4 - Custo de Reposição do Profissional Ausente
A78: 4.1 | B78: Ausências Legais | I78: Dias/Ano | J78: VALOR
A79: A | B79: Férias | I79: 20.9589 | J79: =$L$79*I79/12-0.01 -> 181.69 | K79: =I31+J65+J74 -> 3120.86 | L79: =K79/30 -> 104.03 | M79: =L79*I91 -> 3066.16 | N79: =M79/12 -> 255.51
A80: B | B80: Ausência justificada | I80: 1 | J80: =$L$79*I80/12 -> 8.67
A81: C | B81: Acidente de trabalho | I81: 0.9659 | J81: 8.37
A82: D | B82: Afastamento por doença | I82: 3.4932 | J82: =$L$79*I82/12-0.01 -> 30.27
A83: E | B83: Consulta médica filho | I83: 0.2688 | J83: =$L$79*I83/12 -> 2.33
A84: F | B84: Óbitos na família | I84: 0.0427 | J84: =$L$79*I84/12 -> 0.37
A85: G | B85: Casamento | I85: 0.0355 | J85: 0.31
A86: H | B86: Doação de Sangue | I86: 0.02 | J86: 0.17
A87: I | B87: Testemunho | I87: 0.004 | J87: 0.03
A88: J | B88: Paternidade | I88: 0.1997 | J88: 1.73
A89: K | B89: Maternidade | I89: 2.4753 | J89: 21.46
A90: L | B90: Consulta pré-natal | I90: 0.0098 | J90: 0.08
A91: Total | I91: =SUM(I79:I90) -> 29.4738 | J91: =SUM(J79:J90) -> 255.48
A93: Módulo 5 - Insumos Diversos
A94: 5 | B94: Insumos Diversos | I94: % | J94: VALOR
A95: A | B95: Material | J95: 0
A96: B | B96: Equipamento de Proteção Individual - EPI (Norma Regulamentadora nº 06) - Cláusula 35ª da CCT | J96: ='EPI '!J80 -> 55.12
A97: C | B97: Uniforme | J97: =Uniformes!J258 -> 38.96
A98: D | B98: Depreciação e Manutenção de Equipamentos | J98: 0
A99: Total | J99: =SUM(J95:J98) -> 94.08
A101: Módulo 6 - Custos Indiretos, Tributos e Lucro
A102: 6 | B102: Custos Indiretos, Tributos e Lucro | I102: % | J102: VALOR
A103: A | B103: Despesas Administrativas/Operacionais | I103: 0.025 | J103: =(I$31+J$65+J$74+J$91+J$99)*I103 -> 86.76 | K103: ( De acordo com o caderno técnico - Limpeza - Pernambuco)
A104: B | B104: Lucro | I104: 0.042 | J104: =(I$31+J$65+J$74+J$91+J$99+J$103)*I104 -> 149.4 | K104: ( De acordo com o caderno técnico - Limpeza - Pernambuco)
A105: C | B105: Tributos
B106: 01 - ISSQN e ISS | I106: 0.05 | J106: =I128 -> 216.13
B107: 02 - PIS | I107: 0.0165 | J107: =I126 -> 71.32
B108: 03 - COFINS | I108: 0.076 | J108: =I127 -> 328.51
A109: Total | I109: =SUM(I103:I108) -> 0.2095 | J109: =SUM(J103:J108) -> 852.12
A111: 2. QUADRO-RESUMO DO CUSTO POR EMPREGADO
A112: MÃO DE OBRA VINCULADA A EXECUÇÃO CONTRATUAL (VALOR POR EMPREGADO) | J112: VALOR
A113: A | B113: Módulo 1 - Composição da Remuneração | J113: =I31 -> 1537.76
A114: B | B114: Módulo 2 - Encargos e Benefícios Anuais, Mensais e Diários | J114: =J65 -> 1347.18
A115: C | B115: Módulo 3 - Provisão para Rescisão | J115: =J74 -> 235.92
A116: D | B116: Módulo 4 - Custo de Reposição do Profissional Ausente | J116: =J91 -> 255.48
A117: E | B117: Módulo 5 - Insumos Diversos | J117: =J99 -> 94.08
A118: SUBTOTAL (A+B+C+D+E) | J118: =SUM(J113:J117) -> 3470.42
A119: F | B119: Módulo 6 – Custos Indiretos, Tributos e Lucro | J119: =J109 -> 852.12
A120: VALOR TOTAL POR POSTO | J120: =SUM(J118:J119) -> 4322.54
D122: (*) Cálculo do valor dos tributos
D123: P0 = Mod. 1 + Mod. 2 + Mod. 3 + Mod.4 + Mod.5 + Mod. 6 | I123: =(I$31+J$65+J$74+J$91+J$99+J$103+J104) -> 3706.58
D124: P1 = P0/(1-0,1425) | I124: =I123/(1-(SUM(I106:I108))) -> 4322.54
D125: T = P1 - P0 | I125: =I124-I123 -> 615.96
D126: PIS = (1,65/14,25) x T | I126: =I107/(SUM(I106:I108))*I125 -> 71.32
D127: COFINS = (7,60/14,25) x T | I127: =I108/(SUM(I106:I108))*I125 -> 328.51
D128: ISS = (5,00/14,25) x T | I128: =I106/(SUM(I106:I108))*I125 -> 216.13
A130: VALOR TOTAL DA CONTRATAÇÃO | I130: MENSAL | J130: ANUAL
A131: VALOR TOTAL - 01 POSTO (ENCARREGADO) | I131: =J120 -> 4322.54 | J131: =I131*12 -> 51870.48
A132: VALOR TOTAL - 01POSTOS (ENCARREGADO) | I132: =I131*1 -> 4322.54 | J132: =I132*12 -> 51870.48

Sheet ASG
A1: Companhia de Desenvolvimento dos Vales do São Francisco e do Parnaíba 3ª Superintendência Regional da CODEVASF-3ªSR Gerência Regional de Administração e Suporte Logístico-3ªGRA Planilha de Custos e Formação de Preços
A7: DISCRIMINAÇÃO DOS SERVIÇOS
A8: 1 | B8: Data de Apresentação da Proposta | I8: 2022-11-18
A9: 2 | B9: Município/UF | I9: PETROLINA/PE
A10: 3 | B10: Ano - Acordo, Convenção Coletiva ou Sentença Normativa em Dissídio | I10: SIEMACO/SEAC - PERNAMBUCO- 2022
A11: 4 | B11: Convenção/Acordo Coletivo de Trabalho - Nº do processo e Registro no MTE | I11: PE000091/2022 13623.100419/2022-07
A12: 5 | B12: Vigência da Convenção | I12: 01 de janeiro/2022 a 31 de dezembro/2022
A13: 6 | B13: Nº de Meses de Execução Contratual | I13: 12
A15: IDENTIFICAÇÃO DOS SERVIÇOS
A16: 1 | B16: Tipo de Serviço | I16: LIMPEZA E CONSERVAÇÃO
A17: 2 | B17: Unidade de Medida | I17: POSTO
A18: 3 | B18: Quantidade a Contratar em Função da Unidade de Medida | I18: 14
A19: 4 | B19: Categoria profissional | I19: AUXILIAR DE SERVIÇOS GERAIS - ITEM 23
A20: 5 | B20: Salário Normativo da Categoria Profissional | I20: 1236.43
A22: MÓDULO 1 - COMPOSIÇÃO DA REMUNERAÇÃO
A23: A | B23: Salário Base | I23: =I20 -> 1236.43
A24: B | B24: Adicional de Periculosidade | I24: 0
A25: C | B25: Adicional de insalubridade | I25: 0
A26: D | B26: Adicional Noturno | I26: 0
A27: E | B27: Hora Noturna Adicional | I27: 0
A28: F | B28: Adicional de Hora Extra | I28: 0
A29: G | B29: Intervalo Intrajornada | I29: 0
A30: H | B30: Outros | I30: 0
A31: Remuneração Total | I31: =SUM(I23:I30) -> 1236.43
A33: MÓDULO 2 - ENCARGOS E BENEFÍCIOS ANUAIS, MENSAIS E DIÁRIOS
A34: SUBMÓDULO 2.1 - 13º (Décimo terceiro) Salário, Férias e Adicional de Férias
A35: 2.1 | B35: 13º (Décimo terceiro) Salário e Adicional de Férias | I35: % | J35: VALOR
A36: A | B36: 13º (décimo terceiro) Salário | I36: 0.0833 | J36: =I31*I36 -> 102.99
A37: B | B37: Férias e Adicional de Férias | I37: 0.1111 | J37: =I31*I37 -> 137.37
A38: Total | J38: =SUM(J36:J37) -> 240.36
A40: SUBMÓDULO 2.2 - Encargos Previdenciários (GPS), Fundo de Garantia por Tempo de Serviço (FGTS) e outras contribuições.
A41: 2.2 | B41: GPS, FGTS e outras contribuições | I41: % | J41: VALOR
A42: A | B42: INSS | I42: 0.2 | J42: =($I$31+$J$38)*I42 -> 295.36
A43: B | B43: Salário Educação | I43: 0.025 | J43: 36.92
A44: C | B44: Seguro Acidente do Trabalho/SAT/INSS | I44: 0.03 | J44: 44.3
A45: D | B45: SESI/SESC | I45: 0.015 | J45: 22.15
A46: E | B46: SENAI/SENAC | I46: 0.01 | J46: 14.77
A47: F | B47: INCRA | I47: 0.002 | J47: 2.95
A48: G | B48: FGTS | I48: 0.08 | J48: 118.14
A49: H | B49: SEBRAE | I49: 0.006 | J49: 8.86
A50: Total | I50: =SUM(I42:I49) -> 0.368 | J50: =SUM(J42:J49) -> 543.45
A52: SUBMÓDULO 2.3 - Benefícios Mensais e Diários.
A53: 2.3 | B53: Benefícios Mensais e Diários | I53: % | J53: VALOR
A54: A | B54: Auxílio Alimentação - Cláusula 9º e 11º da CCT (R$ 8,42 * 22 dias + Cesta básica R$ 114,39) | J54: =(22*8.42+114.39) -> 299.63
A55: B | B55: Vale Transporte - Cláusula 12ª da CCT (4,10 - valor da passagem x 2 = 8,20 x 26 - Dias trabalhados - 11 profissionais; 7,00 - valor da passagem x 2 = 14,00 x 26 - Dias trabalhados - 03 profissionais) | J55: =((8.2*26*11)+(14*26*3))/14 -> 245.51
A56: C | B56: Desconto Legal sobre Vale Transporte - Cláusula 12ª da CCT, (6% - seis por cento). | J56: =(-6%*I20) -> -74.19
A57: D | B57: Auxílio Saúde/Assistência Médica - Cláusula 13ª da CCT | J57: 66.15
A58: Total | J58: =SUM(J54:J57) -> 537.1
A60: Quadro-Resumo do Módulo 2 - Encargos e Benefícios anuais, mensais e diários
A61: 2 | B61: Encargos e Benefícios Anuais, Mensais e Diários | J61: VALOR
A62: 2.1 | B62: 13º (décimo terceiro) Salário, Férias e Adicional de Férias | J62: =J38 -> 240.36
A63: 2.2 | B63: GPS, FGTS e outras contribuições | J63: =J50 -> 543.45
A64: 2.3 | B64: Benefícios Mensais e Diários | J64: =J58 -> 537.1
A65: Total | J65: =SUM(J62:J64) -> 1320.91
A67: Módulo 3 - Provisão para Rescisão | L67: GPS
A68: 3 | B68: Provisão para Rescisão | J68: VALOR
A69: A | B69: Aviso prévio indenizado | J69: =M69 -> 72.95 | K69: =I31+J65-L69 -> 2132.02 | L69: =(I31+J38)*0.288 -> 425.32 | M69: =K69/12*0.4106 -> 72.95
A70: B | B70: Multa do FGTS e contribuição social sobre o Aviso Prévio Indenizado | J70: =L70 -> 24.25 | K70: =J48 -> 118.14 | L70: =(K70*0.4+K70*0.1)*0.4106 -> 24.25 | M70: =K70*0.5*0.4106 -> 24.25
A71: C | B71: Aviso Prévio Trabalhado | J71: 87.5 | K71: =I31+J65 -> 2557.34 | L71: =K71/12*0.4106 -> 87.5
A72: D | B72: Multa do FGTS e contribuição social sobre o Aviso Prévio Trabalhado | J72: 24.25 | K72: =J48 -> 118.14 | L72: =(K72*0.4+K72*0.1)*0.4106 -> 24.25 | M72: =K72*0.5*0.4106 -> 24.25
A73: E | B73: Demissão com Justa Causa | J73: =N73 -> -3 | K73: =J36 -> 102.99 | L73: =J37 -> 137.37 | M73: =K73+L73 -> 240.36 | N73: =-M73*0.0125 -> -3
A74: Total | J74: =SUM(J69:J73) -> 205.95
A77: Módulo 4 - Custo de Reposição do Profissional Ausente
A78: 4.1 | B78: Ausências Legais | I78: Dias/Ano | J78: VALOR
A79: A | B79: Férias | I79: 20.9589 | J79: =$L$79*I79/12+0.01 -> 160.89 | K79: =I31+J65+J74 -> 2763.29 | L79: =K79/30 -> 92.11 | M79: =L79*I91 -> 2714.83 | N79: =M79/12 -> 226.24
A80: B | B80: Ausência justificada | I80: 1 | J80: =$L$79*I80/12 -> 7.68
A81: C | B81: Acidente de trabalho | I81: 0.9659 | J81: 7.41
A82: D | B82: Afastamento por doença | I82: 3.4932 | J82: 26.81
A83: E | B83: Consulta médica filho | I83: 0.2688 | J83: 2.06
A84: F | B84: Óbitos na família | I84: 0.0427 | J84: 0.33
A85: G | B85: Casamento | I85: 0.0355 | J85: 0.27
A86: H | B86: Doação de Sangue | I86: 0.02 | J86: 0.15
A87: I | B87: Testemunho | I87: 0.004 | J87: 0.03
A88: J | B88: Paternidade | I88: 0.1997 | J88: 1.53
A89: K | B89: Maternidade | I89: 2.4753 | J89: 19
A90: L | B90: Consulta pré-natal | I90: 0.0098 | J90: 0.08
A91: Total | I91: =SUM(I79:I90) -> 29.4738 | J91: =SUM(J79:J90) -> 226.24
A93: Módulo 5 - Insumos Diversos
A94: 5 | B94: Insumos Diversos | I94: % | J94: VALOR
A95: A | B95: Material | J95: =Material!J58 -> 357.39
A96: B | B96: Equipamento de Proteção Individual - EPI (Norma Regulamentadora nº 06) - Cláusula 35ª da CCT | J96: ='EPI '!J13 -> 29.92
A97: C | B97: Uniforme | J97: =Uniformes!J14 -> 82.49
A98: D | B98: Depreciação e Manutenção de Equipamentos | J98: 0
A99: Total | J99: =SUM(J95:J98) -> 469.8
A101: Módulo 6 - Custos Indiretos, Tributos e Lucro
A102: 6 | B102: Custos Indiretos, Tributos e Lucro | I102: % | J102: VALOR
A103: A | B103: Despesas Administrativas/Operacionais | I103: =Encarregado!I103 -> 0.025 | J103: =(I$31+J$65+J$74+J$91+J$99)*I103 -> 86.48 | K103: ( De acordo com o caderno técnico - Limpeza - Pernambuco)
A104: B | B104: Lucro | I104: =Encarregado!I104 -> 0.042 | J104: =(I$31+J$65+J$74+J$91+J$99+J$103)*I104 -> 148.92 | K104: ( De acordo com o caderno técnico - Limpeza - Pernambuco)
A105: C | B105: Tributos
B106: 01 - ISSQN e ISS | I106: 0.05 | J106: =I128 -> 215.44
B107: 02 - PIS | I107: 0.0165 | J107: =I126 -> 71.09
B108: 03 - COFINS | I108: 0.076 | J108: =I127 -> 327.46
A109: Total | I109: =SUM(I103:I108) -> 0.2095 | J109: =SUM(J103:J108) -> 849.39
A111: 2. QUADRO-RESUMO DO CUSTO POR EMPREGADO
A112: MÃO DE OBRA VINCULADA A EXECUÇÃO CONTRATUAL (VALOR POR EMPREGADO) | J112: VALOR
A113: A | B113: Módulo 1 - Composição da Remuneração | J113: =I31 -> 1236.43
A114: B | B114: Módulo 2 - Encargos e Benefícios Anuais, Mensais e Diários | J114: =J65 -> 1320.91
A115: C | B115: Módulo 3 - Provisão para Rescisão | J115: =J74 -> 205.95
A116: D | B116: Módulo 4 - Custo de Reposição do Profissional Ausente | J116: =J91 -> 226.24
A117: E | B117: Módulo 5 - Insumos Diversos | J117: =J99 -> 469.8
A118: SUBTOTAL (A+B+C+D+E) | J118: =SUM(J113:J117) -> 3459.33
A119: F | B119: Módulo 6 – Custos Indiretos, Tributos e Lucro | J119: =J109 -> 849.39
A120: VALOR TOTAL POR POSTO | J120: =SUM(J118:J119) -> 4308.72
D122: (*) Cálculo do valor dos tributos
D123: P0 = Mod. 1 + Mod. 2 + Mod. 3 + Mod.4 + Mod.5 + Mod. 6 | I123: =(I$31+J$65+J$74+J$91+J$99+J$103+J104) -> 3694.73
D124: P1 = P0/(1-0,1425) | I124: =I123/(1-(SUM(I106:I108))) -> 4308.72
D125: T = P1 - P0 | I125: =I124-I123 -> 613.99
D126: PIS = (1,65/14,25) x T | I126: =I107/(SUM(I106:I108))*I125 -> 71.09
D127: COFINS = (7,60/14,25) x T | I127: =I108/(SUM(I106:I108))*I125 -> 327.46
D128: ISS = (5,00/14,25) x T | I128: =I106/(SUM(I106:I108))*I125 -> 215.44
A130: VALOR TOTAL DA CONTRATAÇÃO | I130: MENSAL | J130: ANUAL
A131: VALOR TOTAL - 01 POSTO (ASG) | I131: =J120 -> 4308.72 | J131: =I131*12 -> 51704.64
A132: VALOR TOTAL - 14 POSTOS (ASG) | I132: =I131*14 -> 60322.08 | J132: =I132*12 -> 723864.96

Sheet Copeira
A1: Companhia de Desenvolvimento dos Vales do São Francisco e do Parnaíba 3ª Superintendência Regional da CODEVASF-3ªSR Gerência Regional de Administração e Suporte Logístico-3ªGRA Planilha de Custos e Formação de Preços
A7: DISCRIMINAÇÃO DOS SERVIÇOS
A8: 1 | B8: Data de Apresentação da Proposta | I8: 2022-11-18
A9: 2 | B9: Município/UF | I9: PETROLINA/PE
A10: 3 | B10: Ano - Acordo, Convenção Coletiva ou Sentença Normativa em Dissídio | I10: SIEMACO/SEAC - PERNAMBUCO- 2022
A11: 4 | B11: Convenção/Acordo Coletivo de Trabalho - Nº do processo e Registro no MTE | I11: PE000091/2022 13623.100419/2022-07
A12: 5 | B12: Vigência da Convenção | I12: 01 de janeiro/2022 a 31 de dezembro/2022
A13: 6 | B13: Nº de Meses de Execução Contratual | I13: 12
A15: IDENTIFICAÇÃO DOS SERVIÇOS
A16: 1 | B16: Tipo de Serviço | I16: LIMPEZA E CONSERVAÇÃO
A17: 2 | B17: Unidade de Medida | I17: POSTO
A18: 3 | B18: Quantidade a Contratar em Função da Unidade de Medida | I18: 1
A19: 4 | B19: Categoria profissional | I19: COPEIRA - ITEM 27
A20: 5 | B20: Salário Normativo da Categoria Profissional | I20: 1236.43
A22: MÓDULO 1 - COMPOSIÇÃO DA REMUNERAÇÃO
A23: A | B23: Salário Base | I23: =I20 -> 1236.43
A24: B | B24: Adicional de Periculosidade | I24: 0
A25: C | B25: Adicional de insalubridade | I25: 0
A26: D | B26: Adicional Noturno | I26: 0
A27: E | B27: Hora Noturna Adicional | I27: 0
A28: F | B28: Adicional de Hora Extra | I28: 0
A29: G | B29: Intervalo Intrajornada | I29: 0
A30: H | B30: Outros | I30: 0
A31: Remuneração Total | I31: =SUM(I23:I30) -> 1236.43
A33: MÓDULO 2 - ENCARGOS E BENEFÍCIOS ANUAIS, MENSAIS E DIÁRIOS
A34: SUBMÓDULO 2.1 - 13º (Décimo terceiro) Salário, Férias e Adicional de Férias
A35: 2.1 | B35: 13º (Décimo terceiro) Salário e Adicional de Férias | I35: % | J35: VALOR
A36: A | B36: 13º (décimo terceiro) Salário | I36: 0.0833 | J36: =I31*I36 -> 102.99
A37: B | B37: Férias e Adicional de Férias | I37: 0.1111 | J37: =I31*I37 -> 137.37
A38: Total | J38: =SUM(J36:J37) -> 240.36
A40: SUBMÓDULO 2.2 - Encargos Previdenciários (GPS), Fundo de Garantia por Tempo de Serviço (FGTS) e outras contribuições.
A41: 2.2 | B41: GPS, FGTS e outras contribuições | I41: % | J41: VALOR
A42: A | B42: INSS | I42: 0.2 | J42: =($I$31+$J$38)*I42 -> 295.36
A43: B | B43: Salário Educação | I43: 0.025 | J43: 36.92
A44: C | B44: Seguro Acidente do Trabalho/SAT/INSS | I44: 0.03 | J44: 44.3
A45: D | B45: SESI/SESC | I45: 0.015 | J45: 22.15
A46: E | B46: SENAI/SENAC | I46: 0.01 | J46: 14.77
A47: F | B47: INCRA | I47: 0.002 | J47: 2.95
A48: G | B48: FGTS | I48: 0.08 | J48: 118.14
A49: H | B49: SEBRAE | I49: 0.006 | J49: 8.86
A50: Total | I50: =SUM(I42:I49) -> 0.368 | J50: =SUM(J42:J49) -> 543.45
A52: SUBMÓDULO 2.3 - Benefícios Mensais e Diários.
A53: 2.3 | B53: Benefícios Mensais e Diários | I53: % | J53: VALOR
A54: A | B54: Auxílio Alimentação - Cláusula 9º e 11º da CCT (R$ 8,42 * 22 dias + Cesta básica R$ 114,39) | J54: =(22*8.42+114.39) -> 299.63
A55: B | B55: Vale Transporte - Cláusula 12ª da CCT (4,10 - valor da passagem x 2 = 8,20 x 22 - Dias trabalhados) | J55: =(8.2*22) -> 180.4
A56: C | B56: Desconto Legal sobre Vale Transporte - Cláusula 12ª da CCT, (6% - seis por cento). | J56: =(-6%*I20) -> -74.19
A57: D | B57: Auxílio Saúde/Assistência Médica - Cláusula 13ª da CCT | J57: 66.15
A58: Total | J58: =SUM(J54:J57) -> 471.99
A60: Quadro-Resumo do Módulo 2 - Encargos e Benefícios anuais, mensais e diários
A61: 2 | B61: Encargos e Benefícios Anuais, Mensais e Diários | J61: VALOR
A62: 2.1 | B62: 13º (décimo terceiro) Salário, Férias e Adicional de Férias | J62: =J38 -> 240.36
A63: 2.2 | B63: GPS, FGTS e outras contribuições | J63: =J50 -> 543.45
A64: 2.3 | B64: Benefícios Mensais e Diários | J64: =J58 -> 471.99
A65: Total | J65: =SUM(J62:J64) -> 1255.8
A67: Módulo 3 - Provisão para Rescisão | L67: GPS
A68: 3 | B68: Provisão para Rescisão | J68: VALOR
A69: A | B69: Aviso prévio indenizado | J69: =M69 -> 70.72 | K69: =I31+J65-L69 -> 2066.91 | L69: =(I31+J38)*0.288 -> 425.32 | M69: =K69/12*0.4106 -> 70.72
A70: B | B70: Multa do FGTS e contribuição social sobre o Aviso Prévio Indenizado | J70: =L70 -> 24.25 | K70: =J48 -> 118.14 | L70: =(K70*0.4+K70*0.1)*0.4106 -> 24.25 | M70: =K70*0.5*0.4106 -> 24.25
A71: C | B71: Aviso Prévio Trabalhado | J71: 85.28 | K71: =I31+J65 -> 2492.23 | L71: =K71/12*0.4106 -> 85.28
A72: D | B72: Multa do FGTS e contribuição social sobre o Aviso Prévio Trabalhado | J72: 24.25 | K72: =J48 -> 118.14 | L72: =(K72*0.4+K72*0.1)*0.4106 -> 24.25 | M72: =K72*0.5*0.4106 -> 24.25
A73: E | B73: Demissão com Justa Causa | J73: =N73 -> -3 | K73: =J36 -> 102.99 | L73: =J37 -> 137.37 | M73: =K73+L73 -> 240.36 | N73: =-M73*0.0125 -> -3
A74: Total | J74: =SUM(J69:J73) -> 201.5
A77: Módulo 4 - Custo de Reposição do Profissional Ausente
A78: 4.1 | B78: Ausências Legais | I78: Dias/Ano | J78: VALOR
A79: A | B79: Férias | I79: 20.9589 | J79: =$L$79*I79/12+0.01 -> 156.83 | K79: =I31+J65+J74 -> 2693.73 | L79: =K79/30 -> 89.79 | M79: =L79*I91 -> 2646.45 | N79: =M79/12 -> 220.54
A80: B | B80: Ausência justificada | I80: 1 | J80: =$L$79*I80/12 -> 7.48
A81: C | B81: Acidente de trabalho | I81: 0.9659 | J81: 7.23
A82: D | B82: Afastamento por doença | I82: 3.4932 | J82: 26.14
A83: E | B83: Consulta médica filho | I83: 0.2688 | J83: =$L$79*I83/12 -> 2.01
A84: F | B84: Óbitos na família | I84: 0.0427 | J84: 0.32
A85: G | B85: Casamento | I85: 0.0355 | J85: 0.27
A86: H | B86: Doação de Sangue | I86: 0.02 | J86: 0.15
A87: I | B87: Testemunho | I87: 0.004 | J87: 0.03
A88: J | B88: Paternidade | I88: 0.1997 | J88: 1.49
A89: K | B89: Maternidade | I89: 2.4753 | J89: 18.52
A90: L | B90: Consulta pré-natal | I90: 0.0098 | J90: 0.07
A91: Total | I91: =SUM(I79:I90) -> 29.4738 | J91: =SUM(J79:J90) -> 220.54
A93: Módulo 5 - Insumos Diversos
A94: 5 | B94: Insumos Diversos | I94: % | J94: VALOR
A95: A | B95: Material | J95: =Material!J110 -> 1179.63
A96: B | B96: Equipamento de Proteção Individual - EPI (Norma Regulamentadora nº 06) - Cláusula 35ª da CCT | J96: ='EPI '!J24 -> 29.36
A97: C | B97: Uniforme | J97: =Uniformes!J41 -> 82.5
A98: D | B98: Depreciação e Manutenção de Equipamentos | J98: 0
A99: Total | J99: =SUM(J95:J98) -> 1291.49
A101: Módulo 6 - Custos Indiretos, Tributos e Lucro
A102: 6 | B102: Custos Indiretos, Tributos e Lucro | I102: % | J102: VALOR
A103: A | B103: Despesas Administrativas/Operacionais | I103: =Encarregado!I103 -> 0.025 | J103: =(I$31+J$65+J$74+J$91+J$99)*I103 -> 105.14 | K103: ( De acordo com o caderno técnico - Limpeza - Pernambuco)
A104: B | B104: Lucro | I104: =Encarregado!I104 -> 0.042 | J104: =(I$31+J$65+J$74+J$91+J$99+J$103)*I104 -> 181.06 | K104: ( De acordo com o caderno técnico - Limpeza - Pernambuco)
A105: C | B105: Tributos
B106: 01 - ISSQN e ISS | I106: 0.05 | J106: =I128 -> 261.92
B107: 02 - PIS | I107: 0.0165 | J107: =I126 -> 86.43
B108: 03 - COFINS | I108: 0.076 | J108: =I127 -> 398.12
A109: Total | I109: =SUM(I103:I108) -> 0.2095 | J109: =SUM(J103:J108) -> 1032.67
A111: 2. QUADRO-RESUMO DO CUSTO POR EMPREGADO
A112: MÃO DE OBRA VINCULADA A EXECUÇÃO CONTRATUAL (VALOR POR EMPREGADO) | J112: VALOR
A113: A | B113: Módulo 1 - Composição da Remuneração | J113: =I31 -> 1236.43
A114: B | B114: Módulo 2 - Encargos e Benefícios Anuais, Mensais e Diários | J114: =J65 -> 1255.8
A115: C | B115: Módulo 3 - Provisão para Rescisão | J115: =J74 -> 201.5
A116: D | B116: Módulo 4 - Custo de Reposição do Profissional Ausente | J116: =J91 -> 220.54
A117: E | B117: Módulo 5 - Insumos Diversos | J117: =J99 -> 1291.49
A118: SUBTOTAL (A+B+C+D+E) | J118: =SUM(J113:J117) -> 4205.76
A119: F | B119: Módulo 6 – Custos Indiretos, Tributos e Lucro | J119: =J109 -> 1032.67
A120: VALOR TOTAL POR POSTO | J120: =SUM(J118:J119) -> 5238.43
D122: (*) Cálculo do valor dos tributos
D123: P0 = Mod. 1 + Mod. 2 + Mod. 3 + Mod.4 + Mod.5 + Mod. 6 | I123: =(I$31+J$65+J$74+J$91+J$99+J$103+J104) -> 4491.96
D124: P1 = P0/(1-0,1425) | I124: =I123/(1-(SUM(I106:I108))) -> 5238.44
D125: T = P1 - P0 | I125: =I124-I123 -> 746.48
D126: PIS = (1,65/14,25) x T | I126: =I107/(SUM(I106:I108))*I125 -> 86.43
D127: COFINS = (7,60/14,25) x T | I127: =I108/(SUM(I106:I108))*I125 -> 398.12
D128: ISS = (5,00/14,25) x T | I128: =I106/(SUM(I106:I108))*I125 -> 261.92
A130: VALOR TOTAL DA CONTRATAÇÃO | I130: MENSAL | J130: ANUAL
A131: VALOR TOTAL - 01 POSTO (COPEIRA) | I131: =J120 -> 5238.43 | J131: =I131*12 -> 62861.16
A132: VALOR TOTAL - 01 POSTOS (COPEIRA) | I132: =I131*1 -> 5238.43 | J132: =I132*12 -> 62861.16

Sheet Recepcionista
A1: Companhia de Desenvolvimento dos Vales do São Francisco e do Parnaíba 3ª Superintendência Regional da CODEVASF-3ªSR Gerência Regional de Administração e Suporte Logístico-3ªGRA Planilha de Custos e Formação de Preços
A7: DISCRIMINAÇÃO DOS SERVIÇOS
A8: 1 | B8: Data de Apresentação da Proposta | I8: 2022-11-18
A9: 2 | B9: Município/UF | I9: PETROLINA/PE
A10: 3 | B10: Ano - Acordo, Convenção Coletiva ou Sentença Normativa em Dissídio | I10: SIEMACO/SEAC - PERNAMBUCO- 2022
A11: 4 | B11: Convenção/Acordo Coletivo de Trabalho - Nº do processo e Registro no MTE | I11: PE000091/2022 13623.100419/2022-07
A12: 5 | B12: Vigência da Convenção | I12: 01 de janeiro/2022 a 31 de dezembro/2022
A13: 6 | B13: Nº de Meses de Execução Contratual | I13: 12
A15: IDENTIFICAÇÃO DOS SERVIÇOS
A16: 1 | B16: Tipo de Serviço | I16: LIMPEZA E CONSERVAÇÃO
A17: 2 | B17: Unidade de Medida | I17: POSTO
A18: 3 | B18: Quantidade a Contratar em Função da Unidade de Medida | I18: 3
A19: 4 | B19: Categoria profissional | I19: RECEPCIONISTA - ITEM 54
A20: 5 | B20: Salário Normativo da Categoria Profissional | I20: 1326.25
A22: MÓDULO 1 - COMPOSIÇÃO DA REMUNERAÇÃO
A23: A | B23: Salário Base | I23: =I20 -> 1326.25
A24: B | B24: Adicional de Periculosidade | I24: 0
A25: C | B25: Adicional de insalubridade | I25: 0
A26: D | B26: Adicional Noturno | I26: 0
A27: E | B27: Hora Noturna Adicional | I27: 0
A28: F | B28: Adicional de Hora Extra | I28: 0
A29: G | B29: Intervalo Intrajornada | I29: 0
A30: H | B30: Outros | I30: 0
A31: Remuneração Total | I31: =SUM(I23:I30) -> 1326.25
A33: MÓDULO 2 - ENCARGOS E BENEFÍCIOS ANUAIS, MENSAIS E DIÁRIOS
A34: SUBMÓDULO 2.1 - 13º (Décimo terceiro) Salário, Férias e Adicional de Férias
A35: 2.1 | B35: 13º (Décimo terceiro) Salário e Adicional de Férias | I35: % | J35: VALOR
A36: A | B36: 13º (décimo terceiro) Salário | I36: 0.0833 | J36: =I31*I36 -> 110.48
A37: B | B37: Férias e Adicional de Férias | I37: 0.1111 | J37: =I31*I37 -> 147.35
A38: Total | J38: =SUM(J36:J37) -> 257.83
A40: SUBMÓDULO 2.2 - Encargos Previdenciários (GPS), Fundo de Garantia por Tempo de Serviço (FGTS) e outras contribuições.
A41: 2.2 | B41: GPS, FGTS e outras contribuições | I41: % | J41: VALOR
A42: A | B42: INSS | I42: 0.2 | J42: =($I$31+$J$38)*I42 -> 316.82
A43: B | B43: Salário Educação | I43: 0.025 | J43: 39.6
A44: C | B44: Seguro Acidente do Trabalho/SAT/INSS | I44: 0.03 | J44: 47.52
A45: D | B45: SESI/SESC | I45: 0.015 | J45: 23.76
A46: E | B46: SENAI/SENAC | I46: 0.01 | J46: 15.84
A47: F | B47: INCRA | I47: 0.002 | J47: 3.17
A48: G | B48: FGTS | I48: 0.08 | J48: 126.73
A49: H | B49: SEBRAE | I49: 0.006 | J49: 9.5
A50: Total | I50: =SUM(I42:I49) -> 0.368 | J50: =SUM(J42:J49) -> 582.94
A52: SUBMÓDULO 2.3 - Benefícios Mensais e Diários.
A53: 2.3 | B53: Benefícios Mensais e Diários | I53: % | J53: VALOR
A54: A | B54: Auxílio Alimentação - Cláusula 9º e 11º da CCT (R$ 8,42 * 22 dias + Cesta básica R$ 114,39) | J54: =(22*8.42+114.39) -> 299.63
A55: B | B55: Vale Transporte - Cláusula 12ª da CCT (4,10 - valor da passagem x 2 = 8,20 x 22 - Dias trabalhados) | J55: =(8.2*22) -> 180.4
A56: C | B56: Desconto Legal sobre Vale Transporte - Cláusula 12ª da CCT, (6% - seis por cento). | J56: =(-6%*I20) -> -79.58
A57: D | B57: Auxílio Saúde/Assistência Médica - Cláusula 13ª da CCT | J57: 66.15
A58: Total | J58: =SUM(J54:J57) -> 466.6
A60: Quadro-Resumo do Módulo 2 - Encargos e Benefícios anuais, mensais e diários
A61: 2 | B61: Encargos e Benefícios Anuais, Mensais e Diários | J61: VALOR
A62: 2.1 | B62: 13º (décimo terceiro) Salário, Férias e Adicional de Férias | J62: =J38 -> 257.83
A63: 2.2 | B63: GPS, FGTS e outras contribuições | J63: =J50 -> 582.94
A64: 2.3 | B64: Benefícios Mensais e Diários | J64: =J58 -> 466.6
A65: Total | J65: =SUM(J62:J64) -> 1307.37
A67: Módulo 3 - Provisão para Rescisão | L67: GPS
A68: 3 | B68: Provisão para Rescisão | J68: VALOR
A69: A | B69: Aviso prévio indenizado | J69: =M69 -> 74.5 | K69: =I31+J65-L69 -> 2177.4 | L69: =(I31+J38)*0.288 -> 456.22 | M69: =K69/12*0.4106 -> 74.5
A70: B | B70: Multa do FGTS e contribuição social sobre o Aviso Prévio Indenizado | J70: =L70 -> 26.02 | K70: =J48 -> 126.73 | L70: =(K70*0.4+K70*0.1)*0.4106 -> 26.02 | M70: =K70*0.5*0.4106 -> 26.02
A71: C | B71: Aviso Prévio Trabalhado | J71: =L71 -> 90.11 | K71: =I31+J65 -> 2633.62 | L71: =K71/12*0.4106 -> 90.11
A72: D | B72: Multa do FGTS e contribuição social sobre o Aviso Prévio Trabalhado | J72: =L72 -> 26.02 | K72: =J48 -> 126.73 | L72: =(K72*0.4+K72*0.1)*0.4106 -> 26.02 | M72: =K72*0.5*0.4106 -> 26.02
A73: E | B73: Demissão com Justa Causa | J73: =N73 -> -3.22 | K73: =J36 -> 110.48 | L73: =J37 -> 147.35 | M73: =K73+L73 -> 257.83 | N73: =-M73*0.0125 -> -3.22
A74: Total | J74: =SUM(J69:J73) -> 213.43
A77: Módulo 4 - Custo de Reposição do Profissional Ausente
A78: 4.1 | B78: Ausências Legais | I78: Dias/Ano | J78: VALOR
A79: A | B79: Férias | I79: 20.9589 | J79: =$L$79*I79/12 -> 165.75 | K79: =I31+J65+J74 -> 2847.05 | L79: =K79/30 -> 94.9 | M79: =L79*I91 -> 2797.06 | N79: =M79/12 -> 233.09
A80: B | B80: Ausência justificada | I80: 1 | J80: =$L$79*I80/12 -> 7.91
A81: C | B81: Acidente de trabalho | I81: 0.9659 | J81: =$L$79*I81/12 -> 7.64
A82: D | B82: Afastamento por doença | I82: 3.4932 | J82: =$L$79*I82/12-0.001 -> 27.62
A83: E | B83: Consulta médica filho | I83: 0.2688 | J83: 2.13
A84: F | B84: Óbitos na família | I84: 0.0427 | J84: 0.34
A85: G | B85: Casamento | I85: 0.0355 | J85: 0.28
A86: H | B86: Doação de Sangue | I86: 0.02 | J86: 0.16
A87: I | B87: Testemunho | I87: 0.004 | J87: 0.03
A88: J | B88: Paternidade | I88: 0.1997 | J88: 1.58
A89: K | B89: Maternidade | I89: 2.4753 | J89: =$L$79*I89/12-0.001 -> 19.57
A90: L | B90: Consulta pré-natal | I90: 0.0098 | J90: 0.08
A91: Total | I91: =SUM(I79:I90) -> 29.4738 | J91: =SUM(J79:J90) -> 233.09
A93: Módulo 5 - Insumos Diversos
A94: 5 | B94: Insumos Diversos | I94: % | J94: VALOR
A95: A | B95: Material | J95: 0
A96: B | B96: Equipamento de Proteção Individual - EPI (Norma Regulamentadora nº 06) - Cláusula 35ª da CCT | J96: 0
A97: C | B97: Uniforme | J97: =Uniformes!J137 -> 38.96
A98: D | B98: Depreciação e Manutenção de Equipamentos | J98: 0
A99: Total | J99: =SUM(J95:J98) -> 38.96
A101: Módulo 6 - Custos Indiretos, Tributos e Lucro
A102: 6 | B102: Custos Indiretos, Tributos e Lucro | I102: % | J102: VALOR
A103: A | B103: Despesas Administrativas/Operacionais | I103: =Encarregado!I103 -> 0.025 | J103: =(I$31+J$65+J$74+J$91+J$99)*I103 -> 77.98 | K103: ( De acordo com o caderno técnico - Limpeza - Pernambuco)
A104: B | B104: Lucro | I104: =Encarregado!I104 -> 0.042 | J104: =(I$31+J$65+J$74+J$91+J$99+J$103)*I104 -> 134.28 | K104: ( De acordo com o caderno técnico - Limpeza - Pernambuco)
A105: C | B105: Tributos
B106: 01 - ISSQN e ISS | I106: 0.05 | J106: =I128 -> 194.25
B107: 02 - PIS | I107: 0.0165 | J107: =I126 -> 64.1
B108: 03 - COFINS | I108: 0.076 | J108: =I127 -> 295.26
A109: Total | I109: =SUM(I103:I108) -> 0.2095 | J109: =SUM(J103:J108) -> 765.87
A111: 2. QUADRO-RESUMO DO CUSTO POR EMPREGADO
A112: MÃO DE OBRA VINCULADA A EXECUÇÃO CONTRATUAL (VALOR POR EMPREGADO) | J112: VALOR
A113: A | B113: Módulo 1 - Composição da Remuneração | J113: =I31 -> 1326.25
A114: B | B114: Módulo 2 - Encargos e Benefícios Anuais, Mensais e Diários | J114: =J65 -> 1307.37
A115: C | B115: Módulo 3 - Provisão para Rescisão | J115: =J74 -> 213.43
A116: D | B116: Módulo 4 - Custo de Reposição do Profissional Ausente | J116: =J91 -> 233.09
A117: E | B117: Módulo 5 - Insumos Diversos | J117: =J99 -> 38.96
A118: SUBTOTAL (A+B+C+D+E) | J118: =SUM(J113:J117) -> 3119.1
A119: F | B119: Módulo 6 – Custos Indiretos, Tributos e Lucro | J119: =J109 -> 765.87
A120: VALOR TOTAL POR POSTO | J120: =SUM(J118:J119) -> 3884.97
D122: (*) Cálculo do valor dos tributos
D123: P0 = Mod. 1 + Mod. 2 + Mod. 3 + Mod.4 + Mod.5 + Mod. 6 | I123: =(I$31+J$65+J$74+J$91+J$99+J$103+J104) -> 3331.36
D124: P1 = P0/(1-0,1425) | I124: =I123/(1-(SUM(I106:I108))) -> 3884.97
D125: T = P1 - P0 | I125: =I124-I123 -> 553.61
D126: PIS = (1,65/14,25) x T | I126: =I107/(SUM(I106:I108))*I125 -> 64.1
D127: COFINS = (7,60/14,25) x T | I127: =I108/(SUM(I106:I108))*I125 -> 295.26
D128: ISS = (5,00/14,25) x T | I128: =I106/(SUM(I106:I108))*I125 -> 194.25
A130: VALOR TOTAL DA CONTRATAÇÃO | I130: MENSAL | J130: ANUAL
A131: VALOR TOTAL - 01 POSTO (RECEPCIONISTA) | I131: =J120 -> 3884.97 | J131: =I131*12 -> 46619.64
A132: VALOR TOTAL - 03 POSTOS (RECEPCIONISTA) | I132: =I131*3 -> 11654.91 | J132: =I132*12 -> 139858.92

Sheet Eletricista
A1: Companhia de Desenvolvimento dos Vales do São Francisco e do Parnaíba 3ª Superintendência Regional da CODEVASF-3ªSR Gerência Regional de Administração e Suporte Logístico-3ªGRA Planilha de Custos e Formação de Preços
A7: DISCRIMINAÇÃO DOS SERVIÇOS
A8: 1 | B8: Data de Apresentação da Proposta | I8: 2022-11-18
A9: 2 | B9: Município/UF | I9: PETROLINA/PE
A10: 3 | B10: Ano - Acordo, Convenção Coletiva ou Sentença Normativa em Dissídio | I10: SIEMACO/SEAC - PERNAMBUCO- 2022
A11: 4 | B11: Convenção/Acordo Coletivo de Trabalho - Nº do processo e Registro no MTE | I11: PE000091/2022 13623.100419/2022-07
A12: 5 | B12: Vigência da Convenção | I12: 01 de janeiro/2022 a 31 de dezembro/2022
A13: 6 | B13: Nº de Meses de Execução Contratual | I13: 12
A15: IDENTIFICAÇÃO DOS SERVIÇOS
A16: 1 | B16: Tipo de Serviço | I16: LIMPEZA E CONSERVAÇÃO
A17: 2 | B17: Unidade de Medida | I17: POSTO
A18: 3 | B18: Quantidade a Contratar em Função da Unidade de Medida | I18: 1
A19: 4 | B19: Categoria profissional | I19: ELETRICISTA - ITEM 88
A20: 5 | B20: Salário Normativo da Categoria Profissional | I20: 1784.4
A22: MÓDULO 1 - COMPOSIÇÃO DA REMUNERAÇÃO
A23: A | B23: Salário Base | I23: =I20 -> 1784.4
A24: B | B24: Adicional de Periculosidade | I24: =I23*0.3 -> 535.32
A25: C | B25: Adicional de insalubridade | I25: 0
A26: D | B26: Adicional Noturno | I26: 0
A27: E | B27: Hora Noturna Adicional | I27: 0
A28: F | B28: Adicional de Hora Extra | I28: 0
A29: G | B29: Intervalo Intrajornada | I29: 0
A30: H | B30: Outros | I30: 0
A31: Remuneração Total | I31: =SUM(I23:I30) -> 2319.72
A33: MÓDULO 2 - ENCARGOS E BENEFÍCIOS ANUAIS, MENSAIS E DIÁRIOS
A34: SUBMÓDULO 2.1 - 13º (Décimo terceiro) Salário, Férias e Adicional de Férias
A35: 2.1 | B35: 13º (Décimo terceiro) Salário e Adicional de Férias | I35: % | J35: VALOR
A36: A | B36: 13º (décimo terceiro) Salário | I36: 0.0833 | J36: =I31*I36 -> 193.23
A37: B | B37: Férias e Adicional de Férias | I37: 0.1111 | J37: =I31*I37 -> 257.72
A38: Total | J38: =SUM(J36:J37) -> 450.95
A40: SUBMÓDULO 2.2 - Encargos Previdenciários (GPS), Fundo de Garantia por Tempo de Serviço (FGTS) e outras contribuições.
A41: 2.2 | B41: GPS, FGTS e outras contribuições | I41: % | J41: VALOR
A42: A | B42: INSS | I42: 0.2 | J42: =($I$31+$J$38)*I42 -> 554.13
A43: B | B43: Salário Educação | I43: 0.025 | J43: 69.27
A44: C | B44: Seguro Acidente do Trabalho/SAT/INSS | I44: 0.03 | J44: 83.12
A45: D | B45: SESI/SESC | I45: 0.015 | J45: 41.56
A46: E | B46: SENAI/SENAC | I46: 0.01 | J46: 27.71
A47: F | B47: INCRA | I47: 0.002 | J47: 5.54
A48: G | B48: FGTS | I48: 0.08 | J48: 221.65
A49: H | B49: SEBRAE | I49: 0.006 | J49: 16.62
A50: Total | I50: =SUM(I42:I49) -> 0.368 | J50: =SUM(J42:J49) -> 1019.6
A52: SUBMÓDULO 2.3 - Benefícios Mensais e Diários.
A53: 2.3 | B53: Benefícios Mensais e Diários | I53: % | J53: VALOR
A54: A | B54: Auxílio Alimentação - Cláusula 9º e 11º da CCT (R$ 8,42 * 22 dias) | J54: =(22*8.42) -> 185.24
A55: B | B55: Vale Transporte - Cláusula 12ª da CCT (4,10 - valor da passagem x 2 = 8,20 x 26 - Dias trabalhados) | J55: =(8.2*26) -> 213.2
A56: C | B56: Desconto Legal sobre Vale Transporte - Cláusula 12ª da CCT, (6% - seis por cento). | J56: =(-6%*I20) -> -107.06
A57: D | B57: Auxílio Saúde/Assistência Médica - Cláusula 13ª da CCT | J57: 66.15
A58: Total | J58: =SUM(J54:J57) -> 357.53
A60: Quadro-Resumo do Módulo 2 - Encargos e Benefícios anuais, mensais e diários
A61: 2 | B61: Encargos e Benefícios Anuais, Mensais e Diários | J61: VALOR
A62: 2.1 | B62: 13º (décimo terceiro) Salário, Férias e Adicional de Férias | J62: =J38 -> 450.95
A63: 2.2 | B63: GPS, FGTS e outras contribuições | J63: =J50 -> 1019.6
A64: 2.3 | B64: Benefícios Mensais e Diários | J64: =J58 -> 357.53
A65: Total | J65: =SUM(J62:J64) -> 1828.08
A67: Módulo 3 - Provisão para Rescisão | L67: GPS
A68: 3 | B68: Provisão para Rescisão | J68: VALOR
A69: A | B69: Aviso prévio indenizado | J69: =M69 -> 114.62 | K69: =I31+J65-L69 -> 3349.85 | L69: =(I31+J38)*0.288 -> 797.95 | M69: =K69/12*0.4106 -> 114.62
A70: B | B70: Multa do FGTS e contribuição social sobre o Aviso Prévio Indenizado | J70: =L70 -> 45.5 | K70: =J48 -> 221.65 | L70: =(K70*0.4+K70*0.1)*0.4106 -> 45.5 | M70: =K70*0.5*0.4106 -> 45.5
A71: C | B71: Aviso Prévio Trabalhado | J71: 141.92 | K71: =I31+J65 -> 4147.8 | L71: =K71/12*0.4106 -> 141.92
A72: D | B72: Multa do FGTS e contribuição social sobre o Aviso Prévio Trabalhado | J72: 45.5 | K72: =J48 -> 221.65 | L72: =(K72*0.4+K72*0.1)*0.4106 -> 45.5 | M72: =K72*0.5*0.4106 -> 45.5
A73: E | B73: Demissão com Justa Causa | J73: =N73 -> -5.64 | K73: =J36 -> 193.23 | L73: =J37 -> 257.72 | M73: =K73+L73 -> 450.95 | N73: =-M73*0.0125 -> -5.64
A74: Total | J74: =SUM(J69:J73) -> 341.9
A77: Módulo 4 - Custo de Reposição do Profissional Ausente
A78: 4.1 | B78: Ausências Legais | I78: Dias/Ano | J78: VALOR
A79: A | B79: Férias | I79: 20.9589 | J79: =$L$79*I79/12+0.01 -> 261.4 | K79: =I31+J65+J74 -> 4489.7 | L79: =K79/30 -> 149.66 | M79: =L79*I91 -> 4411.05 | N79: =M79/12 -> 367.59
A80: B | B80: Ausência justificada | I80: 1 | J80: =$L$79*I80/12 -> 12.47
A81: C | B81: Acidente de trabalho | I81: 0.9659 | J81: 12.05
A82: D | B82: Afastamento por doença | I82: 3.4932 | J82: 43.57
A83: E | B83: Consulta médica filho | I83: 0.2688 | J83: =$L$79*I83/12 -> 3.35
A84: F | B84: Óbitos na família | I84: 0.0427 | J84: 0.53
A85: G | B85: Casamento | I85: 0.0355 | J85: 0.44
A86: H | B86: Doação de Sangue | I86: 0.02 | J86: 0.25
A87: I | B87: Testemunho | I87: 0.004 | J87: 0.05
A88: J | B88: Paternidade | I88: 0.1997 | J88: 2.49
A89: K | B89: Maternidade | I89: 2.4753 | J89: 30.87
A90: L | B90: Consulta pré-natal | I90: 0.0098 | J90: 0.12
A91: Total | I91: =SUM(I79:I90) -> 29.4738 | J91: =SUM(J79:J90) -> 367.59
A93: Módulo 5 - Insumos Diversos
A94: 5 | B94: Insumos Diversos | I94: % | J94: VALOR
A95: A | B95: Material | J95: 0
A96: B | B96: Equipamento de Proteção Individual - EPI (Norma Regulamentadora nº 06) - Cláusula 35ª da CCT | J96: ='EPI '!J60 -> 77.53
A97: C | B97: Uniforme | J97: =Uniformes!J105 -> 61.2
A98: D | B98: Depreciação e Manutenção de Equipamentos | J98: =Equipamentos!I66 -> 18.34
A99: Total | J99: =SUM(J95:J98) -> 157.07
A101: Módulo 6 - Custos Indiretos, Tributos e Lucro
A102: 6 | B102: Custos Indiretos, Tributos e Lucro | I102: % | J102: VALOR
A103: A | B103: Despesas Administrativas/Operacionais | I103: =Encarregado!I103 -> 0.025 | J103: =(I$31+J$65+J$74+J$91+J$99)*I103 -> 125.36 | K103: ( De acordo com o caderno técnico - Limpeza - Pernambuco)
A104: B | B104: Lucro | I104: =Encarregado!I104 -> 0.042 | J104: =(I$31+J$65+J$74+J$91+J$99+J$103)*I104 -> 215.87 | K104: ( De acordo com o caderno técnico - Limpeza - Pernambuco)
A105: C | B105: Tributos
B106: 01 - ISSQN e ISS | I106: 0.05 | J106: =I128 -> 312.28
B107: 02 - PIS | I107: 0.0165 | J107: =I126 -> 103.05
B108: 03 - COFINS | I108: 0.076 | J108: =I127 -> 474.67
A109: Total | I109: =SUM(I103:I108) -> 0.2095 | J109: =SUM(J103:J108) -> 1231.23
A111: 2. QUADRO-RESUMO DO CUSTO POR EMPREGADO
A112: MÃO DE OBRA VINCULADA A EXECUÇÃO CONTRATUAL (VALOR POR EMPREGADO) | J112: VALOR
A113: A | B113: Módulo 1 - Composição da Remuneração | J113: =I31 -> 2319.72
A114: B | B114: Módulo 2 - Encargos e Benefícios Anuais, Mensais e Diários | J114: =J65 -> 1828.08
A115: C | B115: Módulo 3 - Provisão para Rescisão | J115: =J74 -> 341.9
A116: D | B116: Módulo 4 - Custo de Reposição do Profissional Ausente | J116: =J91 -> 367.59
A117: E | B117: Módulo 5 - Insumos Diversos | J117: =J99 -> 157.07
A118: SUBTOTAL (A+B+C+D+E) | J118: =SUM(J113:J117) -> 5014.36
A119: F | B119: Módulo 6 – Custos Indiretos, Tributos e Lucro | J119: =J109 -> 1231.23
A120: VALOR TOTAL POR POSTO | J120: =SUM(J118:J119) -> 6245.59
D122: (*) Cálculo do valor dos tributos
D123: P0 = Mod. 1 + Mod. 2 + Mod. 3 + Mod.4 + Mod.5 + Mod. 6 | I123: =(I$31+J$65+J$74+J$91+J$99+J$103+J104) -> 5355.59
D124: P1 = P0/(1-0,1425) | I124: =I123/(1-(SUM(I106:I108))) -> 6245.59
D125: T = P1 - P0 | I125: =I124-I123 -> 890
D126: PIS = (1,65/14,25) x T | I126: =I107/(SUM(I106:I108))*I125 -> 103.05
D127: COFINS = (7,60/14,25) x T | I127: =I108/(SUM(I106:I108))*I125 -> 474.67
D128: ISS = (5,00/14,25) x T | I128: =I106/(SUM(I106:I108))*I125 -> 312.28
A130: VALOR TOTAL DA CONTRATAÇÃO | I130: MENSAL | J130: ANUAL
A131: VALOR TOTAL - 01 POSTO (ELETRICISTA) | I131: =J120 -> 6245.59 | J131: =I131*12 -> 74947.08
A132: VALOR TOTAL - 01 POSTOS (ELETRICISTA) | I132: =I131*1 -> 6245.59 | J132: =I132*12 -> 74947.08

Sheet AMP
A1: Companhia de Desenvolvimento dos Vales do São Francisco e do Parnaíba 3ª Superintendência Regional da CODEVASF-3ªSR Gerência Regional de Administração e Suporte Logístico-3ªGRA Planilha de Custos e Formação de Preços
A7: DISCRIMINAÇÃO DOS SERVIÇOS
A8: 1 | B8: Data de Apresentação da Proposta | I8: 2022-11-18
A9: 2 | B9: Município/UF | I9: PETROLINA/PE
A10: 3 | B10: Ano - Acordo, Convenção Coletiva ou Sentença Normativa em Dissídio | I10: SIEMACO/SEAC - PERNAMBUCO- 2022
A11: 4 | B11: Convenção/Acordo Coletivo de Trabalho - Nº do processo e Registro no MTE | I11: PE000091/2022 13623.100419/2022-07
A12: 5 | B12: Vigência da Convenção | I12: 01 de janeiro/2022 a 31 de dezembro/2022
A13: 6 | B13: Nº de Meses de Execução Contratual | I13: 12
A15: IDENTIFICAÇÃO DOS SERVIÇOS
A16: 1 | B16: Tipo de Serviço | I16: LIMPEZA E CONSERVAÇÃO
A17: 2 | B17: Unidade de Medida | I17: POSTO
A18: 3 | B18: Quantidade a Contratar em Função da Unidade de Medida | I18: 2
A19: 4 | B19: Categoria profissional | I19: AJUDANTE DE MANUTENÇÃO - ITEM 03
A20: 5 | B20: Salário Normativo da Categoria Profissional | I20: 1341.72
A22: MÓDULO 1 - COMPOSIÇÃO DA REMUNERAÇÃO
A23: A | B23: Salário Base | I23: =I20 -> 1341.72
A24: B | B24: Adicional de Periculosidade | I24: 0
A25: C | B25: Adicional de insalubridade | I25: 0
A26: D | B26: Adicional Noturno | I26: 0
A27: E | B27: Hora Noturna Adicional | I27: 0
A28: F | B28: Adicional de Hora Extra | I28: 0
A29: G | B29: Intervalo Intrajornada | I29: 0
A30: H | B30: Outros | I30: 0
A31: Remuneração Total | I31: =SUM(I23:I30) -> 1341.72
A33: MÓDULO 2 - ENCARGOS E BENEFÍCIOS ANUAIS, MENSAIS E DIÁRIOS
A34: SUBMÓDULO 2.1 - 13º (Décimo terceiro) Salário, Férias e Adicional de Férias
A35: 2.1 | B35: 13º (Décimo terceiro) Salário e Adicional de Férias | I35: % | J35: VALOR
A36: A | B36: 13º (décimo terceiro) Salário | I36: 0.0833 | J36: =I31*I36 -> 111.77
A37: B | B37: Férias e Adicional de Férias | I37: 0.1111 | J37: =I31*I37 -> 149.07
A38: Total | J38: =SUM(J36:J37) -> 260.84
A40: SUBMÓDULO 2.2 - Encargos Previdenciários (GPS), Fundo de Garantia por Tempo de Serviço (FGTS) e outras contribuições.
A41: 2.2 | B41: GPS, FGTS e outras contribuições | I41: % | J41: VALOR
A42: A | B42: INSS | I42: 0.2 | J42: =($I$31+$J$38)*I42 -> 320.51
A43: B | B43: Salário Educação | I43: 0.025 | J43: 40.06
A44: C | B44: Seguro Acidente do Trabalho/SAT/INSS | I44: 0.03 | J44: 48.08
A45: D | B45: SESI/SESC | I45: 0.015 | J45: 24.04
A46: E | B46: SENAI/SENAC | I46: 0.01 | J46: 16.03
A47: F | B47: INCRA | I47: 0.002 | J47: 3.21
A48: G | B48: FGTS | I48: 0.08 | J48: 128.2
A49: H | B49: SEBRAE | I49: 0.006 | J49: 9.62
A50: Total | I50: =SUM(I42:I49) -> 0.368 | J50: =SUM(J42:J49) -> 589.75
A52: SUBMÓDULO 2.3 - Benefícios Mensais e Diários.
A53: 2.3 | B53: Benefícios Mensais e Diários | I53: % | J53: VALOR
A54: A | B54: Auxílio Alimentação - Cláusula 9º e 11º da CCT (R$ 8,42 * 22 dias + Cesta básica R$ 114,39) | J54: =(22*8.42+114.39) -> 299.63
A55: B | B55: Vale Transporte - Cláusula 12ª da CCT (4,10 - valor da passagem x 2 = 8,20 x 26 - Dias trabalhados) | J55: =(8.2*26) -> 213.2
A56: C | B56: Desconto Legal sobre Vale Transporte - Cláusula 12ª da CCT, (6% - seis por cento). | J56: =(-6%*I20) -> -80.5
A57: D | B57: Auxílio Saúde/Assistência Médica - Cláusula 13ª da CCT | J57: 66.15
A58: Total | J58: =SUM(J54:J57) -> 498.48
A60: Quadro-Resumo do Módulo 2 - Encargos e Benefícios anuais, mensais e diários
A61: 2 | B61: Encargos e Benefícios Anuais, Mensais e Diários | J61: VALOR
A62: 2.1 | B62: 13º (décimo terceiro) Salário, Férias e Adicional de Férias | J62: =J38 -> 260.84
A63: 2.2 | B63: GPS, FGTS e outras contribuições | J63: =J50 -> 589.75
A64: 2.3 | B64: Benefícios Mensais e Diários | J64: =J58 -> 498.48
A65: Total | J65: =SUM(J62:J64) -> 1349.07
A67: Módulo 3 - Provisão para Rescisão | L67: GPS
A68: 3 | B68: Provisão para Rescisão | J68: VALOR
A69: A | B69: Aviso prévio indenizado | J69: =M69 -> 76.28 | K69: =I31+J65-L69 -> 2229.25 | L69: =(I31+J38)*0.288 -> 461.54 | M69: =K69/12*0.4106 -> 76.28
A70: B | B70: Multa do FGTS e contribuição social sobre o Aviso Prévio Indenizado | J70: =L70 -> 26.32 | K70: =J48 -> 128.2 | L70: =(K70*0.4+K70*0.1)*0.4106 -> 26.32 | M70: =K70*0.5*0.4106 -> 26.32
A71: C | B71: Aviso Prévio Trabalhado | J71: 92.07 | K71: =I31+J65 -> 2690.79 | L71: =K71/12*0.4106 -> 92.07
A72: D | B72: Multa do FGTS e contribuição social sobre o Aviso Prévio Trabalhado | J72: 26.32 | K72: =J48 -> 128.2 | L72: =(K72*0.4+K72*0.1)*0.4106 -> 26.32 | M72: =K72*0.5*0.4106 -> 26.32
A73: E | B73: Demissão com Justa Causa | J73: =N73 -> -3.26 | K73: =J36 -> 111.77 | L73: =J37 -> 149.07 | M73: =K73+L73 -> 260.84 | N73: =-M73*0.0125 -> -3.26
A74: Total | J74: =SUM(J69:J73) -> 217.73
A77: Módulo 4 - Custo de Reposição do Profissional Ausente
A78: 4.1 | B78: Ausências Legais | I78: Dias/Ano | J78: VALOR
A79: A | B79: Férias | I79: 20.9589 | J79: =$L$79*I79/12 -> 169.33 | K79: =I31+J65+J74 -> 2908.52 | L79: =K79/30 -> 96.95 | M79: =L79*I91 -> 2857.48 | N79: =M79/12 -> 238.12
A80: B | B80: Ausência justificada | I80: 1 | J80: 8.08
A81: C | B81: Acidente de trabalho | I81: 0.9659 | J81: 7.8
A82: D | B82: Afastamento por doença | I82: 3.4932 | J82: =$L$79*I82/12-0.001 -> 28.22
A83: E | B83: Consulta médica filho | I83: 0.2688 | J83: =$L$79*I83/12 -> 2.17
A84: F | B84: Óbitos na família | I84: 0.0427 | J84: 0.34
A85: G | B85: Casamento | I85: 0.0355 | J85: 0.29
A86: H | B86: Doação de Sangue | I86: 0.02 | J86: 0.16
A87: I | B87: Testemunho | I87: 0.004 | J87: 0.03
A88: J | B88: Paternidade | I88: 0.1997 | J88: 1.61
A89: K | B89: Maternidade | I89: 2.4753 | J89: =$L$79*I89/12-0.001 -> 20
A90: L | B90: Consulta pré-natal | I90: 0.0098 | J90: =$L$79*I90/12 -> 0.08
A91: Total | I91: =SUM(I79:I90) -> 29.4738 | J91: =SUM(J79:J90) -> 238.11
A93: Módulo 5 - Insumos Diversos
A94: 5 | B94: Insumos Diversos | I94: % | J94: VALOR
A95: A | B95: Material | J95: 0
A96: B | B96: Equipamento de Proteção Individual - EPI (Norma Regulamentadora nº 06) - Cláusula 35ª da CCT | J96: ='EPI '!J39 -> 77.53
A97: C | B97: Uniforme | J97: =Uniformes!J70 -> 61.19
A98: D | B98: Depreciação e Manutenção de Equipamentos | J98: =Equipamentos!I42 -> 101.23
A99: Total | J99: =SUM(J95:J98) -> 239.95
A101: Módulo 6 - Custos Indiretos, Tributos e Lucro
A102: 6 | B102: Custos Indiretos, Tributos e Lucro | I102: % | J102: VALOR
A103: A | B103: Despesas Administrativas/Operacionais | I103: =Encarregado!I103 -> 0.025 | J103: =(I$31+J$65+J$74+J$91+J$99)*I103 -> 84.66 | K103: ( De acordo com o caderno técnico - Limpeza - Pernambuco)
A104: B | B104: Lucro | I104: =Encarregado!I104 -> 0.042 | J104: =(I$31+J$65+J$74+J$91+J$99+J$103)*I104 -> 145.79 | K104: ( De acordo com o caderno técnico - Limpeza - Pernambuco)
A105: C | B105: Tributos
B106: 01 - ISSQN e ISS | I106: 0.05 | J106: =I128 -> 210.91
B107: 02 - PIS | I107: 0.0165 | J107: =I126 -> 69.6
B108: 03 - COFINS | I108: 0.076 | J108: =I127 -> 320.58
A109: Total | I109: =SUM(I103:I108) -> 0.2095 | J109: =SUM(J103:J108) -> 831.54
A111: 2. QUADRO-RESUMO DO CUSTO POR EMPREGADO
A112: MÃO DE OBRA VINCULADA A EXECUÇÃO CONTRATUAL (VALOR POR EMPREGADO) | J112: VALOR
A113: A | B113: Módulo 1 - Composição da Remuneração | J113: =I31 -> 1341.72
A114: B | B114: Módulo 2 - Encargos e Benefícios Anuais, Mensais e Diários | J114: =J65 -> 1349.07
A115: C | B115: Módulo 3 - Provisão para Rescisão | J115: =J74 -> 217.73
A116: D | B116: Módulo 4 - Custo de Reposição do Profissional Ausente | J116: =J91 -> 238.11
A117: E | B117: Módulo 5 - Insumos Diversos | J117: =J99 -> 239.95
A118: SUBTOTAL (A+B+C+D+E) | J118: =SUM(J113:J117) -> 3386.58
A119: F | B119: Módulo 6 – Custos Indiretos, Tributos e Lucro | J119: =J109 -> 831.54
A120: VALOR TOTAL POR POSTO | J120: =SUM(J118:J119) -> 4218.12
D122: (*) Cálculo do valor dos tributos
D123: P0 = Mod. 1 + Mod. 2 + Mod. 3 + Mod.4 + Mod.5 + Mod. 6 | I123: =(I$31+J$65+J$74+J$91+J$99+J$103+J104) -> 3617.03
D124: P1 = P0/(1-0,1425) | I124: =I123/(1-(SUM(I106:I108))) -> 4218.11
D125: T = P1 - P0 | I125: =I124-I123 -> 601.08
D126: PIS = (1,65/14,25) x T | I126: =I107/(SUM(I106:I108))*I125 -> 69.6
D127: COFINS = (7,60/14,25) x T | I127: =I108/(SUM(I106:I108))*I125 -> 320.58
D128: ISS = (5,00/14,25) x T | I128: =I106/(SUM(I106:I108))*I125 -> 210.91
A130: VALOR TOTAL DA CONTRATAÇÃO | I130: MENSAL | J130: ANUAL
A131: VALOR TOTAL - 01 POSTO (AMP) | I131: =J120 -> 4218.12 | J131: =I131*12 -> 50617.44
A132: VALOR TOTAL - 02 POSTOS (AMP) | I132: =I131*2 -> 8436.24 | J132: =I132*12 -> 101234.88

Sheet Almoxarife
A1: Companhia de Desenvolvimento dos Vales do São Francisco e do Parnaíba 3ª Superintendência Regional da CODEVASF-3ªSR Gerência Regional de Administração e Suporte Logístico-3ªGRA Planilha de Custos e Formação de Preços
A7: DISCRIMINAÇÃO DOS SERVIÇOS
A8: 1 | B8: Data de Apresentação da Proposta | I8: 2022-11-18
A9: 2 | B9: Município/UF | I9: PETROLINA/PE
A10: 3 | B10: Ano - Acordo, Convenção Coletiva ou Sentença Normativa em Dissídio | I10: SIEMACO/SEAC - PERNAMBUCO- 2022
A11: 4 | B11: Convenção/Acordo Coletivo de Trabalho - Nº do processo e Registro no MTE | I11: PE000091/2022 13623.100419/2022-07
A12: 5 | B12: Vigência da Convenção | I12: 01 de janeiro/2022 a 31 de dezembro/2022
A13: 6 | B13: Nº de Meses de Execução Contratual | I13: 12
A15: IDENTIFICAÇÃO DOS SERVIÇOS
A16: 1 | B16: Tipo de Serviço | I16: LIMPEZA E CONSERVAÇÃO
A17: 2 | B17: Unidade de Medida | I17: POSTO
A18: 3 | B18: Quantidade a Contratar em Função da Unidade de Medida | I18: 1
A19: 4 | B19: Categoria profissional | I19: ALMOXARIFE - ITEM 05
A20: 5 | B20: Salário Normativo da Categoria Profissional | I20: 1236.43
A22: MÓDULO 1 - COMPOSIÇÃO DA REMUNERAÇÃO
A23: A | B23: Salário Base | I23: =I20 -> 1236.43
A24: B | B24: Adicional de Periculosidade | I24: 0
A25: C | B25: Adicional de insalubridade | I25: 0
A26: D | B26: Adicional Noturno | I26: 0
A27: E | B27: Hora Noturna Adicional | I27: 0
A28: F | B28: Adicional de Hora Extra | I28: 0
A29: G | B29: Intervalo Intrajornada | I29: 0
A30: H | B30: Outros | I30: 0
A31: Remuneração Total | I31: =SUM(I23:I30) -> 1236.43
A33: MÓDULO 2 - ENCARGOS E BENEFÍCIOS ANUAIS, MENSAIS E DIÁRIOS
A34: SUBMÓDULO 2.1 - 13º (Décimo terceiro) Salário, Férias e Adicional de Férias
A35: 2.1 | B35: 13º (Décimo terceiro) Salário e Adicional de Férias | I35: % | J35: VALOR
A36: A | B36: 13º (décimo terceiro) Salário | I36: 0.0833 | J36: =I31*I36 -> 102.99
A37: B | B37: Férias e Adicional de Férias | I37: 0.1111 | J37: =I31*I37 -> 137.37
A38: Total | J38: =SUM(J36:J37) -> 240.36
A40: SUBMÓDULO 2.2 - Encargos Previdenciários (GPS), Fundo de Garantia por Tempo de Serviço (FGTS) e outras contribuições.
A41: 2.2 | B41: GPS, FGTS e outras contribuições | I41: % | J41: VALOR
A42: A | B42: INSS | I42: 0.2 | J42: =($I$31+$J$38)*I42 -> 295.36
A43: B | B43: Salário Educação | I43: 0.025 | J43: 36.92
A44: C | B44: Seguro Acidente do Trabalho/SAT/INSS | I44: 0.03 | J44: 44.3
A45: D | B45: SESI/SESC | I45: 0.015 | J45: 22.15
A46: E | B46: SENAI/SENAC | I46: 0.01 | J46: 14.77
A47: F | B47: INCRA | I47: 0.002 | J47: 2.95
A48: G | B48: FGTS | I48: 0.08 | J48: 118.14
A49: H | B49: SEBRAE | I49: 0.006 | J49: 8.86
A50: Total | I50: =SUM(I42:I49) -> 0.368 | J50: =SUM(J42:J49) -> 543.45
A52: SUBMÓDULO 2.3 - Benefícios Mensais e Diários.
A53: 2.3 | B53: Benefícios Mensais e Diários | I53: % | J53: VALOR
A54: A | B54: Auxílio Alimentação - Cláusula 9º e 11º da CCT (R$ 8,42 * 22 dias + Cesta básica R$ 114,39) | J54: =(22*8.42+114.39) -> 299.63
A55: B | B55: Vale Transporte - Cláusula 12ª da CCT (7,00 - valor da passagem x 2 = 14,00 x 26 - Dias trabalhados) | J55: =(14*26) -> 364
A56: C | B56: Desconto Legal sobre Vale Transporte - Cláusula 12ª da CCT, (6% - seis por cento). | J56: =(-6%*I20) -> -74.19
A57: D | B57: Auxílio Saúde/Assistência Médica - Cláusula 13ª da CCT | J57: 66.15
A58: Total | J58: =SUM(J54:J57) -> 655.59
A60: Quadro-Resumo do Módulo 2 - Encargos e Benefícios anuais, mensais e diários
A61: 2 | B61: Encargos e Benefícios Anuais, Mensais e Diários | J61: VALOR
A62: 2.1 | B62: 13º (décimo terceiro) Salário, Férias e Adicional de Férias | J62: =J38 -> 240.36
A63: 2.2 | B63: GPS, FGTS e outras contribuições | J63: =J50 -> 543.45
A64: 2.3 | B64: Benefícios Mensais e Diários | J64: =J58 -> 655.59
A65: Total | J65: =SUM(J62:J64) -> 1439.4
A67: Módulo 3 - Provisão para Rescisão | L67: GPS
A68: 3 | B68: Provisão para Rescisão | J68: VALOR
A69: A | B69: Aviso prévio indenizado | J69: =M69 -> 77 | K69: =I31+J65-L69 -> 2250.51 | L69: =(I31+J38)*0.288 -> 425.32 | M69: =K69/12*0.4106 -> 77
A70: B | B70: Multa do FGTS e contribuição social sobre o Aviso Prévio Indenizado | J70: =L70 -> 24.25 | K70: =J48 -> 118.14 | L70: =(K70*0.4+K70*0.1)*0.4106 -> 24.25 | M70: =K70*0.5*0.4106 -> 24.25
A71: C | B71: Aviso Prévio Trabalhado | J71: 91.56 | K71: =I31+J65 -> 2675.83 | L71: =K71/12*0.4106 -> 91.56
A72: D | B72: Multa do FGTS e contribuição social sobre o Aviso Prévio Trabalhado | J72: 24.25 | K72: =J48 -> 118.14 | L72: =(K72*0.4+K72*0.1)*0.4106 -> 24.25 | M72: =K72*0.5*0.4106 -> 24.25
A73: E | B73: Demissão com Justa Causa | J73: =N73 -> -3 | K73: =J36 -> 102.99 | L73: =J37 -> 137.37 | M73: =K73+L73 -> 240.36 | N73: =-M73*0.0125 -> -3
A74: Total | J74: =SUM(J69:J73) -> 214.06
A77: Módulo 4 - Custo de Reposição do Profissional Ausente
A78: 4.1 | B78: Ausências Legais | I78: Dias/Ano | J78: VALOR
A79: A | B79: Férias | I79: 20.9589 | J79: =$L$79*I79/12+0.01 -> 168.26 | K79: =I31+J65+J74 -> 2889.89 | L79: =K79/30 -> 96.33 | M79: =L79*I91 -> 2839.21 | N79: =M79/12 -> 236.6
A80: B | B80: Ausência justificada | I80: 1 | J80: =$L$79*I80/12 -> 8.03
A81: C | B81: Acidente de trabalho | I81: 0.9659 | J81: 7.75
A82: D | B82: Afastamento por doença | I82: 3.4932 | J82: 28.04
A83: E | B83: Consulta médica filho | I83: 0.2688 | J83: 2.16
A84: F | B84: Óbitos na família | I84: 0.0427 | J84: 0.34
A85: G | B85: Casamento | I85: 0.0355 | J85: 0.28
A86: H | B86: Doação de Sangue | I86: 0.02 | J86: 0.16
A87: I | B87: Testemunho | I87: 0.004 | J87: 0.03
A88: J | B88: Paternidade | I88: 0.1997 | J88: 1.6
A89: K | B89: Maternidade | I89: 2.4753 | J89: 19.87
A90: L | B90: Consulta pré-natal | I90: 0.0098 | J90: 0.08
A91: Total | I91: =SUM(I79:I90) -> 29.4738 | J91: =SUM(J79:J90) -> 236.6
A93: Módulo 5 - Insumos Diversos
A94: 5 | B94: Insumos Diversos | I94: % | J94: VALOR
A95: A | B95: Material | J95: 0
A96: B | B96: Equipamento de Proteção Individual - EPI (Norma Regulamentadora nº 06) - Cláusula 35ª da CCT | J96: ='EPI '!J80 -> 55.12
A97: C | B97: Uniforme | J97: =Uniformes!J226 -> 61.2
A98: D | B98: Depreciação e Manutenção de Equipamentos | J98: 0
A99: Total | J99: =SUM(J95:J98) -> 116.32
A101: Módulo 6 - Custos Indiretos, Tributos e Lucro
A102: 6 | B102: Custos Indiretos, Tributos e Lucro | I102: % | J102: VALOR
A103: A | B103: Despesas Administrativas/Operacionais | I103: =Encarregado!I103 -> 0.025 | J103: =(I$31+J$65+J$74+J$91+J$99)*I103 -> 81.07 | K103: ( De acordo com o caderno técnico - Limpeza - Pernambuco)
A104: B | B104: Lucro | I104: =Encarregado!I104 -> 0.042 | J104: =(I$31+J$65+J$74+J$91+J$99+J$103)*I104 -> 139.6 | K104: ( De acordo com o caderno técnico - Limpeza - Pernambuco)
A105: C | B105: Tributos
B106: 01 - ISSQN e ISS | I106: 0.05 | J106: =I128 -> 201.95
B107: 02 - PIS | I107: 0.0165 | J107: =I126 -> 66.64
B108: 03 - COFINS | I108: 0.076 | J108: =I127 -> 306.97
A109: Total | I109: =SUM(I103:I108) -> 0.2095 | J109: =SUM(J103:J108) -> 796.23
A111: 2. QUADRO-RESUMO DO CUSTO POR EMPREGADO
A112: MÃO DE OBRA VINCULADA A EXECUÇÃO CONTRATUAL (VALOR POR EMPREGADO) | J112: VALOR
A113: A | B113: Módulo 1 - Composição da Remuneração | J113: =I31 -> 1236.43
A114: B | B114: Módulo 2 - Encargos e Benefícios Anuais, Mensais e Diários | J114: =J65 -> 1439.4
A115: C | B115: Módulo 3 - Provisão para Rescisão | J115: =J74 -> 214.06
A116: D | B116: Módulo 4 - Custo de Reposição do Profissional Ausente | J116: =J91 -> 236.6
A117: E | B117: Módulo 5 - Insumos Diversos | J117: =J99 -> 116.32
A118: SUBTOTAL (A+B+C+D+E) | J118: =SUM(J113:J117) -> 3242.81
A119: F | B119: Módulo 6 – Custos Indiretos, Tributos e Lucro | J119: =J109 -> 796.23
A120: VALOR TOTAL POR POSTO | J120: =SUM(J118:J119) -> 4039.04
D122: (*) Cálculo do valor dos tributos
D123: P0 = Mod. 1 + Mod. 2 + Mod. 3 + Mod.4 + Mod.5 + Mod. 6 | I123: =(I$31+J$65+J$74+J$91+J$99+J$103+J104) -> 3463.48
D124: P1 = P0/(1-0,1425) | I124: =I123/(1-(SUM(I106:I108))) -> 4039.04
D125: T = P1 - P0 | I125: =I124-I123 -> 575.56
D126: PIS = (1,65/14,25) x T | I126: =I107/(SUM(I106:I108))*I125 -> 66.64
D127: COFINS = (7,60/14,25) x T | I127: =I108/(SUM(I106:I108))*I125 -> 306.97
D128: ISS = (5,00/14,25) x T | I128: =I106/(SUM(I106:I108))*I125 -> 201.95
A130: VALOR TOTAL DA CONTRATAÇÃO | I130: MENSAL | J130: ANUAL
A131: VALOR TOTAL - 01 POSTO (ALMOXARIFE) | I131: =J120 -> 4039.04 | J131: =I131*12 -> 48468.48
A132: VALOR TOTAL - 01 POSTOS (ALMOXARIFE) | I132: =I131*1 -> 4039.04 | J132: =I132*12 -> 48468.48

Sheet Apoio Téc. ADM II
A1: Companhia de Desenvolvimento dos Vales do São Francisco e do Parnaíba 3ª Superintendência Regional da CODEVASF-3ªSR Gerência Regional de Administração e Suporte Logístico-3ªGRA Planilha de Custos e Formação de Preços
A7: DISCRIMINAÇÃO DOS SERVIÇOS
A8: 1 | B8: Data de Apresentação da Proposta | I8: 2022-11-18
A9: 2 | B9: Município/UF | I9: PETROLINA/PE
A10: 3 | B10: Ano - Acordo, Convenção Coletiva ou Sentença Normativa em Dissídio | I10: SIEMACO/SEAC - PERNAMBUCO- 2022
A11: 4 | B11: Convenção/Acordo Coletivo de Trabalho - Nº do processo e Registro no MTE | I11: PE000091/2022 13623.100419/2022-07
A12: 5 | B12: Vigência da Convenção | I12: 01 de janeiro/2022 a 31 de dezembro/2022
A13: 6 | B13: Nº de Meses de Execução Contratual | I13: 12
A15: IDENTIFICAÇÃO DOS SERVIÇOS
A16: 1 | B16: Tipo de Serviço | I16: LIMPEZA E CONSERVAÇÃO
A17: 2 | B17: Unidade de Medida | I17: POSTO
A18: 3 | B18: Quantidade a Contratar em Função da Unidade de Medida | I18: 1
A19: 4 | B19: Categoria profissional | I19: APOIO TÉCNICO ADMINISTRATIVO II - ITEM 71
A20: 5 | B20: Salário Normativo da Categoria Profissional | I20: 2612.35
A22: MÓDULO 1 - COMPOSIÇÃO DA REMUNERAÇÃO
A23: A | B23: Salário Base | I23: =I20 -> 2612.35
A24: B | B24: Adicional de Periculosidade | I24: 0
A25: C | B25: Adicional de insalubridade | I25: 0
A26: D | B26: Adicional Noturno | I26: 0
A27: E | B27: Hora Noturna Adicional | I27: 0
A28: F | B28: Adicional de Hora Extra | I28: 0
A29: G | B29: Intervalo Intrajornada | I29: 0
A30: H | B30: Outros | I30: 0
A31: Remuneração Total | I31: =SUM(I23:I30) -> 2612.35
A33: MÓDULO 2 - ENCARGOS E BENEFÍCIOS ANUAIS, MENSAIS E DIÁRIOS
A34: SUBMÓDULO 2.1 - 13º (Décimo terceiro) Salário, Férias e Adicional de Férias
A35: 2.1 | B35: 13º (Décimo terceiro) Salário e Adicional de Férias | I35: % | J35: VALOR
A36: A | B36: 13º (décimo terceiro) Salário | I36: 0.0833 | J36: =I31*I36 -> 217.61
A37: B | B37: Férias e Adicional de Férias | I37: 0.1111 | J37: =I31*I37 -> 290.23
A38: Total | J38: =SUM(J36:J37) -> 507.84
A40: SUBMÓDULO 2.2 - Encargos Previdenciários (GPS), Fundo de Garantia por Tempo de Serviço (FGTS) e outras contribuições.
A41: 2.2 | B41: GPS, FGTS e outras contribuições | I41: % | J41: VALOR
A42: A | B42: INSS | I42: 0.2 | J42: =($I$31+$J$38)*I42 -> 624.04
A43: B | B43: Salário Educação | I43: 0.025 | J43: 78
A44: C | B44: Seguro Acidente do Trabalho/SAT/INSS | I44: 0.03 | J44: 93.61
A45: D | B45: SESI/SESC | I45: 0.015 | J45: 46.8
A46: E | B46: SENAI/SENAC | I46: 0.01 | J46: 31.2
A47: F | B47: INCRA | I47: 0.002 | J47: 6.24
A48: G | B48: FGTS | I48: 0.08 | J48: 249.62
A49: H | B49: SEBRAE | I49: 0.006 | J49: 18.72
A50: Total | I50: =SUM(I42:I49) -> 0.368 | J50: =SUM(J42:J49) -> 1148.23
A52: SUBMÓDULO 2.3 - Benefícios Mensais e Diários.
A53: 2.3 | B53: Benefícios Mensais e Diários | I53: % | J53: VALOR
A54: A | B54: Auxílio Alimentação - Cláusula 9º e 11º da CCT (R$ 8,42 * 22 dias) | J54: =(22*8.42) -> 185.24
A55: B | B55: Vale Transporte - Cláusula 12ª da CCT (4,10 - valor da passagem x 2 = 8,20 x 22 - Dias trabalhados) | J55: =(8.2*22) -> 180.4
A56: C | B56: Desconto Legal sobre Vale Transporte - Cláusula 12ª da CCT, (6% - seis por cento). | J56: =(-6%*I20) -> -156.74
A57: D | B57: Auxílio Saúde/Assistência Médica - Cláusula 13ª da CCT | J57: 66.15
A58: Total | J58: =SUM(J54:J57) -> 275.05
A60: Quadro-Resumo do Módulo 2 - Encargos e Benefícios anuais, mensais e diários
A61: 2 | B61: Encargos e Benefícios Anuais, Mensais e Diários | J61: VALOR
A62: 2.1 | B62: 13º (décimo terceiro) Salário, Férias e Adicional de Férias | J62: =J38 -> 507.84
A63: 2.2 | B63: GPS, FGTS e outras contribuições | J63: =J50 -> 1148.23
A64: 2.3 | B64: Benefícios Mensais e Diários | J64: =J58 -> 275.05
A65: Total | J65: =SUM(J62:J64) -> 1931.12
A67: Módulo 3 - Provisão para Rescisão | L67: GPS
A68: 3 | B68: Provisão para Rescisão | J68: VALOR
A69: A | B69: Aviso prévio indenizado | J69: =M69 -> 124.71 | K69: =I31+J65-L69 -> 3644.86 | L69: =(I31+J38)*0.288 -> 898.61 | M69: =K69/12*0.4106 -> 124.71
A70: B | B70: Multa do FGTS e contribuição social sobre o Aviso Prévio Indenizado | J70: =L70 -> 51.25 | K70: =J48 -> 249.62 | L70: =(K70*0.4+K70*0.1)*0.4106 -> 51.25 | M70: =K70*0.5*0.4106 -> 51.25
A71: C | B71: Aviso Prévio Trabalhado | J71: 155.46 | K71: =I31+J65 -> 4543.47 | L71: =K71/12*0.4106 -> 155.46
A72: D | B72: Multa do FGTS e contribuição social sobre o Aviso Prévio Trabalhado | J72: 51.25 | K72: =J48 -> 249.62 | L72: =(K72*0.4+K72*0.1)*0.4106 -> 51.25 | M72: =K72*0.5*0.4106 -> 51.25
A73: E | B73: Demissão com Justa Causa | J73: =N73 -> -6.35 | K73: =J36 -> 217.61 | L73: =J37 -> 290.23 | M73: =K73+L73 -> 507.84 | N73: =-M73*0.0125 -> -6.35
A74: Total | J74: =SUM(J69:J73) -> 376.32
A77: Módulo 4 - Custo de Reposição do Profissional Ausente
A78: 4.1 | B78: Ausências Legais | I78: Dias/Ano | J78: VALOR
A79: A | B79: Férias | I79: 20.9589 | J79: =$L$79*I79/12-0.01 -> 286.41 | K79: =I31+J65+J74 -> 4919.79 | L79: =K79/30 -> 163.99 | M79: =L79*I91 -> 4833.41 | N79: =M79/12 -> 402.78
A80: B | B80: Ausência justificada | I80: 1 | J80: =$L$79*I80/12 -> 13.67
A81: C | B81: Acidente de trabalho | I81: 0.9659 | J81: 13.2
A82: D | B82: Afastamento por doença | I82: 3.4932 | J82: =$L$79*I82/12-0.01 -> 47.73
A83: E | B83: Consulta médica filho | I83: 0.2688 | J83: 3.67
A84: F | B84: Óbitos na família | I84: 0.0427 | J84: 0.58
A85: G | B85: Casamento | I85: 0.0355 | J85: 0.49
A86: H | B86: Doação de Sangue | I86: 0.02 | J86: 0.27
A87: I | B87: Testemunho | I87: 0.004 | J87: 0.05
A88: J | B88: Paternidade | I88: 0.1997 | J88: 2.73
A89: K | B89: Maternidade | I89: 2.4753 | J89: 33.83
A90: L | B90: Consulta pré-natal | I90: 0.0098 | J90: 0.13
A91: Total | I91: =SUM(I79:I90) -> 29.4738 | J91: =SUM(J79:J90) -> 402.76
A93: Módulo 5 - Insumos Diversos
A94: 5 | B94: Insumos Diversos | I94: % | J94: VALOR
A95: A | B95: Material | J95: 0
A96: B | B96: Equipamento de Proteção Individual - EPI (Norma Regulamentadora nº 06) - Cláusula 35ª da CCT | J96: 0
A97: C | B97: Uniforme | J97: =Uniformes!J180 -> 38.96
A98: D | B98: Depreciação e Manutenção de Equipamentos | J98: 0
A99: Total | J99: =SUM(J95:J98) -> 38.96
A101: Módulo 6 - Custos Indiretos, Tributos e Lucro
A102: 6 | B102: Custos Indiretos, Tributos e Lucro | I102: % | J102: VALOR
A103: A | B103: Despesas Administrativas/Operacionais | I103: =Encarregado!I103 -> 0.025 | J103: =(I$31+J$65+J$74+J$91+J$99)*I103 -> 134.04 | K103: ( De acordo com o caderno técnico - Limpeza - Pernambuco)
A104: B | B104: Lucro | I104: =Encarregado!I104 -> 0.042 | J104: =(I$31+J$65+J$74+J$91+J$99+J$103)*I104 -> 230.81 | K104: ( De acordo com o caderno técnico - Limpeza - Pernambuco)
A105: C | B105: Tributos
B106: 01 - ISSQN e ISS | I106: 0.05 | J106: =I128 -> 333.9
B107: 02 - PIS | I107: 0.0165 | J107: =I126 -> 110.19
B108: 03 - COFINS | I108: 0.076 | J108: =I127 -> 507.53
A109: Total | I109: =SUM(I103:I108) -> 0.2095 | J109: =SUM(J103:J108) -> 1316.47
A111: 2. QUADRO-RESUMO DO CUSTO POR EMPREGADO
A112: MÃO DE OBRA VINCULADA A EXECUÇÃO CONTRATUAL (VALOR POR EMPREGADO) | J112: VALOR
A113: A | B113: Módulo 1 - Composição da Remuneração | J113: =I31 -> 2612.35
A114: B | B114: Módulo 2 - Encargos e Benefícios Anuais, Mensais e Diários | J114: =J65 -> 1931.12
A115: C | B115: Módulo 3 - Provisão para Rescisão | J115: =J74 -> 376.32
A116: D | B116: Módulo 4 - Custo de Reposição do Profissional Ausente | J116: =J91 -> 402.76
A117: E | B117: Módulo 5 - Insumos Diversos | J117: =J99 -> 38.96
A118: SUBTOTAL (A+B+C+D+E) | J118: =SUM(J113:J117) -> 5361.51
A119: F | B119: Módulo 6 – Custos Indiretos, Tributos e Lucro | J119: =J109 -> 1316.47
A120: VALOR TOTAL POR POSTO | J120: =SUM(J118:J119) -> 6677.98
D122: (*) Cálculo do valor dos tributos
D123: P0 = Mod. 1 + Mod. 2 + Mod. 3 + Mod.4 + Mod.5 + Mod. 6 | I123: =(I$31+J$65+J$74+J$91+J$99+J$103+J104) -> 5726.36
D124: P1 = P0/(1-0,1425) | I124: =I123/(1-(SUM(I106:I108))) -> 6677.97
D125: T = P1 - P0 | I125: =I124-I123 -> 951.61
D126: PIS = (1,65/14,25) x T | I126: =I107/(SUM(I106:I108))*I125 -> 110.19
D127: COFINS = (7,60/14,25) x T | I127: =I108/(SUM(I106:I108))*I125 -> 507.53
D128: ISS = (5,00/14,25) x T | I128: =I106/(SUM(I106:I108))*I125 -> 333.9
A130: VALOR TOTAL DA CONTRATAÇÃO | I130: MENSAL | J130: ANUAL
A131: VALOR TOTAL - 01 POSTO (APOIO TÉCNICO ADMINISTRATIVO II) | I131: =J120 -> 6677.98 | J131: =I131*12 -> 80135.76
A132: VALOR TOTAL - 01 POSTOS (APOIO TÉCNICO ADMINISTRATIVO II) | I132: =I131*1 -> 6677.98 | J132: =I132*12 -> 80135.76

Sheet Complemento Serviço Limpeza
A2: Ministério da Desenvolvimento Regional - MDR Companhia de Desenvolvimento dos Vales do São Francisco e do Parnaíba 3ª Superintendência Regional PORTARIA Nº 07 DE 09/03/2011 - SLTI/MPOG COMPLEMENTO DOS SERVIÇOS DE LIMPEZA E CONSERVAÇÃO PREÇO MENSAL UNITÁRIO POR METRO QUADRADO (m²) A - ÁREA INTERNA SEM INSALUBRIDADE
A14: MÃO-DE-OBRA | B14: PRODUTIVIDADE ( 1 / m² ) ( 1 ) | D14: PREÇO HOMEM-MÊS ( R$ ) ( 2 ) | F14: SUBTOTAL (R$ / m² ) (3 = 1 x 2)
A17: Auxiliar de Seviços Gerais | B17: 1 / 800 | D17: =ASG!J120 -> 4308.72 | F17: =D17*(1/800) -> 5.39
A18: Encarregado | B18: 1/(14 x 800) | D18: =Encarregado!J120 -> 4322.54 | F18: =D18*(1/(14*800)) -> 0.39
A19: TOTAL (Área Tipo "A") | F19: =F17+F18 -> 5.78
A21: B - ÁREA EXTERNA SEM INSALUBRIDADE
A22: MÃO-DE-OBRA | B22: PRODUTIVIDADE ( 1 / m² ) ( 1 ) | D22: PREÇO HOMEM-MÊS ( R$ ) ( 2 ) | F22: SUBTOTAL (R$ / m² ) (3 = 1 x 2)
A25: Auxiliar de Seviços Gerais | B25: 1 /2100 | D25: =ASG!J120 -> 4308.72 | F25: =D25*(1/2100) -> 2.05
A26: Encarregado | B26: 1/(14 x 2100) | D26: =Encarregado!J120 -> 4322.54 | F26: =D26*(1/(14*2100)) -> 0.15
A27: TOTAL (Área Tipo "B") | F27: =SUM(F25:F26) -> 2.2
A29: C - ESQUADRIAS INTERNAS E EXTERNAS
A30: MÃO-DE-OBRA | B30: PRODUTIVIDADE | C30: FREQUÊNCIA NO MÊS (HORA) | D30: JORNADA DE TRABALHO NO MÊS (HORAS) 1/188,76 | E30: (1x2x3) Ki | F30: PREÇO HOMEM-MÊS | G30: SUBTOTAL
B32: ( 1 / m² ) (1) | C32: ( 2 ) | D32: ( 3 ) | E32: ( 4 ) | F32: ( R$ ) (5) | G32: (R$ / m² ) (6= 4x5)
A34: Auxiliar de Seviços Gerais | B34: 1 /300 | C34: 16 | D34: =1/188.76 -> 0.0052977 | E34: =(1/300)*C34*D34 -> 0.0002825 | F34: =ASG!J120 -> 4308.72 | G34: =E34*F34 -> 1.22
A35: Encarregado | B35: 1/(14 x 300) | C35: 16,00 | D35: =1/188.76 -> 0.0052977 | E35: =1/(14*300)*C35*D35 -> 2.02e-05 | F35: =Encarregado!J120 -> 4322.54 | G35: =E35*F35 -> 0.09
A36: TOTAL (Área Tipo "C") | G36: =SUM(G34:G35) -> 1.31
A38: II - VALOR MENSAL DOS SERVIÇOS DE CONSERVAÇÃO E LIMPEZA
A39: TIPO DE ÁREA | B39: PREÇO MENSAL UNITÁRIO (R$ / m²) | D39: ÁREA ( m² ) | F39: SUBTOTAL (R$)
A42: A - Interna sem Insalubridade | B42: =F19 -> 5.78 | D42: 3020.51 | F42: =B42*D42 -> 17458.55
A43: B - Externa sem Insalubridade | B43: =F27 -> 2.2 | D43: 19441.42 | F43: 42771.12
A44: C - Esquadrias Internas e Externas | B44: =G36 -> 1.31 | D44: 282 | F44: 369.42
A45: D - Serviços (Outros) | B45: 0 | D45: 0 | F45: 0
A46: TOTAL MENSAL DOS SERVIÇOS | F46: =F42+F43+F44 -> 60599.09
A47: PETROLINA/PE, NOVEMBRO DE 2022.

Sheet Calc. das áreas
A2: Ministério de Desenvolvimento Regional - MDR Companhia de Desenvolvimento dos Vales do São Francisco e do Parnaíba 3ª Superintendência Regional
A8: AREA ÚTIL EM M²
C9: AREAS | G9: EFETIVOS (Por indice de produtividade mínima)
G10: 800 | H10: 2100 | I10: 300
A11: ITEM | B11: UNIDADE* | C11: INTERNA | D11: EXTERNA | E11: ESQUADRIAS | F11: TOTAL | G11: INTERNA | H11: EXTERNA | I11: ESQUADRIAS | J11: TOTAL
A12: 1 | C12: 3020.51 | D12: 19441.42 | E12: 282 | F12: =SUM(C12:E12) -> 22743.93 | G12: =SUM(C12/G$10) -> 3.78 | H12: =SUM(D12/H$10) -> 9.26 | I12: =E12/I10 -> 0.94 | J12: =G12+H12+I12 -> 13.98
A13: 2 | F13: 0 | G13: =SUM(C13/G$10) -> 0 | H13: 0 | I13: =SUM(D13/I$10) -> 0 | J13: =G13+H13+I13 -> 0
A14: 3 | F14: 0 | G14: 0 | H14: 0 | I14: 0 | J14: 0
A15: 4 | F15: 0 | G15: 0 | H15: 0 | I15: 0 | J15: 0
A16: 5 | F16: 0 | G16: 0 | H16: 0 | I16: 0 | J16: 0
A17: TOTAL DE ÁREA ÚTIL | C17: =SUM(C12:C16) -> 3020.51 | D17: 19441.42 | E17: 282 | F17: 22743.93 | G17: 3.78 | H17: 9.26 | I17: 0.94 | J17: 13.98
A19: * Estão sendo consideradas as produtividades de 800 m² para áreas internas, 2100 m² para áreas externas e 300 m² para áreas de esquadrias internas e externas.
A23: PETROLINA/PE, NOVEMBRO DE 2022.

Sheet Produtividade
A2: Ministério do Desenvolvimento Regional-MDR Companhia de Desenvolvimento dos Vales do São Francisco e do Parnaíba 3ª Superintendência Regional da CODEVASF- 3ªSR
A5: ÍNDICES DE PRODUTIVIDADE
A6: Tipos de Áreas | D6: Área (m²) | F6: Frequência | I6: Quantidade Estimada de Servente | L6: Produtividade Diária
A7: Área Interna | D7: 3020.51 | F7: Diária | I7: =D7/L7 -> 3.78 | L7: 800
A8: Área Externa | D8: 19441.42 | F8: Diária | I8: =D8/L8 -> 9.26 | L8: 2100
A9: Esquadrias | D9: 282 | F9: Diária | I9: =D9/L9 -> 0.94 | L9: 300
A10: TOTAL | D10: =SUM(D7:D9) -> 22743.93 | I10: =SUM(I7:I9) -> 13.98
A12: "2.1 Os orgãos e entidades deverão utilizar as experiências e os parâmetos aferidos e resultantes de seus contratos anteriores para aferir as produtividades da mão de obra, em face das caracteristicas das áreas a serem limpas, buscando sempre fatores economicos favoráveis à Administração Pública." Fundamemtado no Item 2.1 do Anexo VI-B da IN 05/2017 da Secretaria de Gestão do Ministério do Planejamento, Desenvolvimento e Gestão - SEGES/MPOG, com base na experiência e na observação dos contratos anteriores, bem como no conhecimento vivenciado da dinâmica de cada unidade, a contratação dos postos de trabalho devem seguir o quantitativo estimado na planilha do Termo de Referência.

Sheet Quadro Resumo
A4: Ministério de Desenvolvimento Regional - MDR Companhia de Desenvolvimento dos Vales do São Francisco e do Parnaíba 3ª Superintendência Regional PORTARIA Nº 07 DE 09/03/2011 - SLTI/MPOG QUADRO RESUMO - VALOR MENSAL DOS SERVIÇOS DE CONSERVAÇÃO E LIMPEZA
A11: Item | B11: Tipo de Serviço | C11: Valor Proposto por profissional | D11: Quant. Prof. | E11: Valor Proposto por Àrea (m²) | F11: Quant. de Área Total por Tipo de Serviço (m²) | G11: Valor Mensal por Tipo de Serviço
B12: (A) | C12: ( B ) | D12: ( C ) | E12: ( D ) | F12: ( E ) | G12: (F = D x E)
A13: 1 | B13: Serviços de Limpeza e Conservação - Área Interna - Encarregado | C13: =Encarregado!J120 -> 4322.54 | E13: ='Complemento Serviço Limpeza'!F18 -> 0.39 | F13: =3020.51 -> 3020.51 | G13: =E13*F13 -> 1178
A14: 2 | B14: Serviços de Limpeza e Conservação - Área Externa - Encarregado | C14: =Encarregado!J120 -> 4322.54 | E14: ='Complemento Serviço Limpeza'!F26 -> 0.15 | F14: =19441.42 -> 19441.42 | G14: 2916.21
A15: 3 | B15: Serviços de Limpeza e Conservação - Esquadrias Internas e Externas - Encarregado | C15: =Encarregado!J120 -> 4322.54 | E15: ='Complemento Serviço Limpeza'!G35 -> 0.09 | F15: =282 -> 282 | G15: 25.38
A16: 4 | B16: Serviços de Limpeza e Conservação - Área Interna - Auxiliar de Serviços Gerais | C16: =ASG!J120 -> 4308.72 | E16: ='Complemento Serviço Limpeza'!F17 -> 5.39 | F16: =3020.51 -> 3020.51 | G16: 16280.55
A17: 5 | B17: Serviços de Limpeza e Conservação - Área Externa - Auxiliar de Serviços Gerais | C17: =ASG!J120 -> 4308.72 | E17: ='Complemento Serviço Limpeza'!F25 -> 2.05 | F17: =19441.42 -> 19441.42 | G17: 39854.91
A18: 6 | B18: Serviços de Limpeza e Conservação - Esquadrias Internas e Externas - Auxiliar de Serviços Gerais | C18: =ASG!J120 -> 4308.72 | E18: ='Complemento Serviço Limpeza'!G34 -> 1.22 | F18: =282 -> 282 | G18: 344.04
A19: Valor Mensal dos Serviços | G19: =SUM(G13:G18) -> 60599.09
A21: PETROLINA/PE, NOVEMBRO DE 2022.

Sheet EPI
A1: Ministério de Desenvolvimento Regional - MDR Companhia de Desenvolvimento dos Vales do São Francisco e do Parnaíba 3ª Superintendência Regional
A5: INSUMOS DIVERSOS EPI - AUXILIAR DE SERVIÇOS GERAIS
A6: DESCRIÇÃO | B6: REFERÊNCIA | C6: UND | D6: QUANT. FORNECIDA POR ANO | E6: COTAÇÃO I | F6: COTAÇÃO II | G6: COTAÇÃO III | H6: PREÇO MEDIANO PRATICADO NO MERCADO (R$) | I6: CUSTO ANUAL | J6: CUSTO MENSAL
A7: Óculos de proteção, material de armação náilon, tipo lente antiembaçante, cor da lente cinza, lente de policarbonato, anti-risco, cordão de segurança, proteção UV, com certificado de aprovação do Ministério do Trabalho e Emprego, de boa qualidade. | C7: Unidade | D7: 14 | E7: 29.03 | F7: 44.49 | G7: 37 | H7: =MEDIAN(E7,F7,G7) -> 37 | I7: =D7*H7 -> 518 | J7: =I7/12 -> 43.17
A8: Par de calçado: bota de segurança, material PVC - cloreto de polivinila, sola de borracha antiderrapante, tipo cano longo, para uso de serviços gerais, com certificado de aprovação do Ministério do Trabalho e Emprego, de boa qualidade. | C8: Par | D8: 14 | E8: 65.9 | F8: 49.9 | G8: 78.9 | H8: 65.9 | I8: 922.6 | J8: 76.88
A9: Par de calçado: botina de segurança, solado baixo, vaqueta relax, poliuretano (pu) bi- densidade, hidrofugado, elástico nas laterais/recoberto, acolchoado, palmilha de couro antibacteriana, biqueira plástica, com certificado de aprovação do Ministério do Trabalho e Emprego, de boa qualidade. | C9: Par | D9: 14 | E9: 65 | F9: 59.9 | G9: 66.4 | H9: 65 | I9: 910 | J9: 75.83
A10: Par de luvas nitrilicas para manuseio de produtos químico, com certificado de aprovação do Ministério do Trabalho e Emprego, de boa qualidade | C10: Par | D10: =14*6 -> 84 | E10: 42.78 | F10: 10.8 | G10: 19.9 | H10: 19.9 | I10: 1671.6 | J10: 139.3
A11: Par de luvas de raspa de couro, cano longo, com certificado de aprovação do Ministério do Ministério do Trabalho e Emprego, de boa qualidade | C11: Par | D11: =14*3 -> 42 | E11: 25.4 | F11: 23.9 | G11: 21.55 | H11: 23.9 | I11: 1003.8 | J11: 83.65
A12: TOTAL | D12: - | E12: - | F12: - | G12: - | H12: - | I12: =SUM(I7:I11) -> 5026 | J12: =SUM(J7:J11) -> 418.83
A13: VALOR MENSAL POR POSTO (14 ASG) | J13: =J12/14 -> 29.92
A16: INSUMOS DIVERSOS EPI - COPEIRA
A17: DESCRIÇÃO | B17: REFERÊNCIA | C17: UND | D17: QUANT. FORNECIDA POR ANO | E17: COTAÇÃO I | F17: COTAÇÃO II | G17: COTAÇÃO III | H17: PREÇO MEDIANO PRATICADO NO MERCADO (R$) | I17: CUSTO ANUAL | J17: CUSTO MENSAL
A18: Avental de PVC, de boa qualidade, cor branco; | C18: Unidade | D18: 2 | E18: 21.5 | F18: 24.9 | G18: 19.5 | H18: =MEDIAN(E18,F18,G18) -> 21.5 | I18: =H18*D18 -> 43 | J18: =I18/12 -> 3.58
A19: Óculos de proteção, material de armação náilon, tipo lente antiembaçante, cor da lente cinza, lente de policarbonato, anti-risco, cordão de segurança, proteção UV, com certificado de aprovação do Ministério do Trabalho e Emprego, de boa qualidade. | C19: Unidade | D19: 2 | E19: =E7 -> 29.03 | F19: =F7 -> 44.49 | G19: =G7 -> 37 | H19: 37 | I19: 74 | J19: 6.17
A20: Par de calçado: bota de segurança, material PVC - cloreto de polivinila, sola de borracha antiderrapante, tipo cano longo, para uso de serviços gerais, com certificado de aprovação do Ministério do Trabalho e Emprego, de boa qualidade. | C20: Par | D20: 1 | E20: =E8 -> 65.9 | F20: =F8 -> 49.9 | G20: =G8 -> 78.9 | H20: 65.9 | I20: 65.9 | J20: 5.49
A21: Par de luvas de segurança, material neoprene, tamanho 9¹/², aplicação para proteção térmica (altas temperaturas), forro isolante com dupla camada de algodão, comprimento 35,5 cm, modelo de palma antiderrapante com certificado de aprovação do Ministério do Trabalho e Emprego, de boa qualidade. | C21: Unidade | D21: 2 | E21: 25 | F21: 19.9 | G21: 28.95 | H21: 25 | I21: 50 | J21: 4.17
A22: Par de luvas nitrilicas para manuseio de produtos químico, com certificado de aprovação do Ministério do Trabalho e Emprego, de boa qualidade | C22: Par | D22: 6 | E22: 42.78 | F22: 10.8 | G22: 19.9 | H22: 19.9 | I22: 119.4 | J22: 9.95
A23: TOTAL | D23: - | E23: - | F23: - | G23: - | H23: - | I23: =SUM(I18:I22) -> 352.3 | J23: =SUM(J18:J22) -> 29.36
A24: VALOR MENSAL POR POSTO (1 COPEIRA) | J24: =J23/1 -> 29.36
A26: INSUMOS DIVERSOS EPI - AJUDANTE DE MANUTENÇÃO PREDIAL
A27: DESCRIÇÃO | B27: REFERÊNCIA | C27: UND | D27: QUANT. FORNECIDA POR ANO | E27: COTAÇÃO I | F27: COTAÇÃO II | G27: COTAÇÃO III | H27: PREÇO MEDIANO PRATICADO NO MERCADO (R$) | I27: CUSTO ANUAL | J27: CUSTO MENSAL
A28: Abafador de ruído auricular, material plástico rígido, formato concha, nível de redução de ruído NRRSF 17 DB, com certificado de aprovação do Ministério do Trabalho e Emprego, de boa qualidade. | C28: Unidade | D28: 2 | E28: 51.75 | F28: 107.99 | G28: 78.9 | H28: =MEDIAN(E28,F28,G28) -> 78.9 | I28: =D28*H28 -> 157.8 | J28: =I28/12 -> 13.15
A29: Capacete de segurança, material polietileno de alta densidade, tipo aba frontal, aplicação construção civil/cia eletricidade e indústrias, características adicionais classe A, com jugular, com certificado de aprovação do Ministério do Trabalho e Emprego, de boa qualidade. | C29: Unidade | D29: 2 | E29: 57 | F29: 56.9 | G29: 72.9 | H29: 57 | I29: 114 | J29: 9.5
A30: Cinto de segurança, material nylon, paraquedista, revestimento interno de almofada, com suspensório de regularem para pernas e cabo espia, com certificado de aprovação do Ministério do Trabalho e Emprego, de boa qualidade. | C30: Unidade | D30: 2 | E30: 299.9 | F30: 167.1 | G30: 399 | H30: 299.9 | I30: 599.8 | J30: 49.98
A31: Óculos de proteção, material de armação náilon, tipo lente antiembaçante, cor da lente cinza, lente de policarbonato, anti-risco, cordão de segurança, proteção UV, com certificado de aprovação do Ministério do Trabalho e Emprego, de boa qualidade | C31: Unidade | D31: 2 | E31: =E7 -> 29.03 | F31: =F7 -> 44.49 | G31: =G7 -> 37 | H31: 37 | I31: 74 | J31: 6.17
A32: Par de calçado: bota de segurança, material PVC - cloreto de polivinila, sola de borracha antiderrapante, tipo cano longo, para uso de serviços gerais, com certificado de aprovação do Ministério do Trabalho e Emprego, de boa qualidade. | C32: Par | D32: 2 | E32: 65.9 | F32: 49.9 | G32: 78.9 | H32: 65.9 | I32: 131.8 | J32: 10.98
A33: Par de calçado: botina de segurança, solado baixo, vaqueta relax, poliuretano (pu) bi- densidade, hidrofugado, elástico nas laterais/recoberto, acolchoado, palmilha de couro antibacteriana, biqueira plástica, com certificado de aprovação do Ministério do do Ministério do Trabalho e Emprego, de boa qualidade. | C33: Par | D33: 2 | E33: =E9 -> 65 | F33: =F9 -> 59.9 | G33: =G9 -> 66.4 | H33: 65 | I33: 130 | J33: 10.83
A34: Par de luvas de raspa de couro, cano longo, com certificado de aprovação do Ministério do Trabalho e Emprego, de boa qualidade. | C34: Par | D34: 2 | E34: =E11 -> 25.4 | F34: =F11 -> 23.9 | G34: =G11 -> 21.55 | H34: 23.9 | I34: 47.8 | J34: 3.98
A35: Par de luva de segurança, algodão e poliester, segurança e proteção individual, tricotada, sem costura, 04 fios, com certificado de aprovação do Ministério do Trabalho e Emprego, de boa qualidade. | C35: Par | D35: 2 | E35: 13.9 | F35: 13.99 | G35: 12.9 | H35: 13.9 | I35: 27.8 | J35: 2.32
A36: Par de luvas isolantes para baixa tensão até 5 Kva, com certificado de aprovação do Ministério do Trabalho e Emprego, de boa qualidade | C36: Par | D36: 2 | E36: 199 | F36: 268.9 | G36: 319.3 | H36: 268.9 | I36: 537.8 | J36: 44.82
A37: Par de luvas nitrilicas para manuseio de produtos químico, com certificado de aprovação do Ministério do Trabalho e Emprego, de boa qualidade. | C37: Par | D37: 2 | E37: =E22 -> 42.78 | F37: =F22 -> 10.8 | G37: =G22 -> 19.9 | H37: 19.9 | I37: 39.8 | J37: 3.32
A38: TOTAL | D38: - | E38: - | F38: - | G38: - | H38: - | I38: =SUM(I28:I37) -> 1860.6 | J38: =SUM(J28:J37) -> 155.05
A39: VALOR MENSAL POR POSTO (2 AMP) | J39: =J38/2 -> 77.53
A47: INSUMOS DIVERSOS EPI - ELETRICISTA
A48: DESCRIÇÃO | B48: REFERÊNCIA | C48: UND | D48: QUANT. FORNECIDA POR ANO | E48: COTAÇÃO I | F48: COTAÇÃO II | G48: COTAÇÃO III | H48: PREÇO MEDIANO PRATICADO NO MERCADO (R$) | I48: CUSTO ANUAL | J48: CUSTO MENSAL
A49: Abafador de ruído auricular, material plástico rígido, formato concha, nível de redução de ruído NRRSF 17 DB, com certificado de aprovação do Ministério do Trabalho e Emprego, de boa qualidade. | C49: Unidade | D49: 1 | E49: =E28 -> 51.75 | F49: =F28 -> 107.99 | G49: =G28 -> 78.9 | H49: =MEDIAN(E49,F49,G49) -> 78.9 | I49: =D49*H49 -> 78.9 | J49: =I49/12 -> 6.58
A50: Capacete de segurança, material polietileno de alta densidade, tipo aba frontal, aplicação construção civil/cia eletricidade e indústrias, características adicionais classe A, com jugular, com certificado de aprovação do Ministério do Trabalho e Emprego, de boa qualidade. | C50: Unidade | D50: 1 | E50: =E29 -> 57 | F50: =F29 -> 56.9 | G50: =G29 -> 72.9 | H50: 57 | I50: 57 | J50: 4.75
A51: Cinto de segurança, material nylon, paraquedista, revestimento interno de almofada, com suspensório de regularem para pernas e cabo espia, com certificado de aprovação do Ministério do Trabalho e Emprego, de boa qualidade. | C51: Unidade | D51: 1 | E51: =E30 -> 299.9 | F51: =F30 -> 167.1 | G51: =G30 -> 399 | H51: 299.9 | I51: 299.9 | J51: 24.99
A52: Óculos de proteção, material de armação náilon, tipo lente antiembaçante, cor da lente cinza, lente de policarbonato, anti-risco, cordão de segurança, proteção UV, com certificado de aprovação do Ministério do Trabalho e Emprego, de boa qualidade | C52: Unidade | D52: 1 | E52: =E7 -> 29.03 | F52: =F7 -> 44.49 | G52: =G7 -> 37 | H52: 37 | I52: 37 | J52: 3.08
A53: Par de calçado: bota de segurança, material PVC - cloreto de polivinila, sola de borracha antiderrapante, tipo cano longo, para uso de serviços gerais, com certificado de aprovação do Ministério do Trabalho e Emprego, de boa qualidade. | C53: Par | D53: 1 | E53: =E8 -> 65.9 | F53: =F8 -> 49.9 | G53: =G8 -> 78.9 | H53: 65.9 | I53: 65.9 | J53: 5.49
A54: Par de calçado: botina de segurança, solado baixo, vaqueta relax, poliuretano (pu) bi- densidade, hidrofugado, elástico nas laterais/recoberto, acolchoado, palmilha de couro antibacteriana, biqueira plástica, com certificado de aprovação do Ministério do do Ministério do Trabalho e Emprego, de boa qualidade. | C54: Par | D54: 1 | E54: =E9 -> 65 | F54: =F9 -> 59.9 | G54: =G9 -> 66.4 | H54: 65 | I54: 65 | J54: 5.42
A55: Par de luvas de raspa de couro, cano longo, com certificado de aprovação do Ministério do Trabalho e Emprego, de boa qualidade. | C55: Par | D55: 1 | E55: =E11 -> 25.4 | F55: =F11 -> 23.9 | G55: =G11 -> 21.55 | H55: 23.9 | I55: 23.9 | J55: 1.99
A56: Par de luva de segurança, algodão e poliester, segurança e proteção individual, tricotada, sem costura, 04 fios, com certificado de aprovação do Ministério do Trabalho e Emprego, de boa qualidade. | C56: Par | D56: 1 | E56: =E35 -> 13.9 | F56: =F35 -> 13.99 | G56: =G35 -> 12.9 | H56: 13.9 | I56: 13.9 | J56: 1.16
A57: Par de luvas isolantes para baixa tensão até 5 Kva, com certificado de aprovação do Ministério do Trabalho e Emprego, de boa qualidade | C57: Par | D57: 1 | E57: =E36 -> 199 | F57: =F36 -> 268.9 | G57: =G36 -> 319.3 | H57: 268.9 | I57: 268.9 | J57: 22.41
A58: Par de luvas nitrilicas para manuseio de produtos químico, com certificado de aprovação do Ministério do Trabalho e Emprego, de boa qualidade. | C58: Par | D58: 1 | E58: =E10 -> 42.78 | F58: =F10 -> 10.8 | G58: =G10 -> 19.9 | H58: 19.9 | I58: 19.9 | J58: 1.66
A59: TOTAL | D59: - | E59: - | F59: - | G59: - | H59: - | I59: =SUM(I49:I58) -> 930.3 | J59: =SUM(J49:J58) -> 77.53
A60: VALOR MENSAL POR POSTO (1 ELETRICISTA) | J60: =J59 -> 77.53
A68: INSUMOS DIVERSOS EPI - ENCARREGADO
A69: DESCRIÇÃO | B69: REFERÊNCIA | C69: UND | D69: QUANT. FORNECIDA POR ANO | E69: COTAÇÃO I | F69: COTAÇÃO II | G69: COTAÇÃO III | H69: PREÇO MEDIANO PRATICADO NO MERCADO (R$) | I69: CUSTO ANUAL | J69: CUSTO MENSAL
A70: Abafador de ruído auricular, material plástico rígido, formato concha, nível de redução de ruído NRRSF 17 DB, com certificado de aprovação do Ministério do Trabalho e Emprego, de boa qualidade. | C70: Unidade | D70: 1 | E70: =E28 -> 51.75 | F70: =F28 -> 107.99 | G70: =G28 -> 78.9 | H70: =MEDIAN(E70,F70,G70) -> 78.9 | I70: =D70*H70 -> 78.9 | J70: =I70/12 -> 6.58
A71: Capacete de segurança, material polietileno de alta densidade, tipo aba frontal, aplicação construção civil/cia eletricidade e indústrias, características adicionais classe A, com jugular, com certificado de aprovação do Ministério do Trabalho e Emprego, de boa qualidade. | C71: Unidade | D71: 1 | E71: =E29 -> 57 | F71: =F29 -> 56.9 | G71: =G29 -> 72.9 | H71: 57 | I71: 57 | J71: 4.75
A72: Cinto de segurança, material nylon, paraquedista, revestimento interno de almofada, com suspensório de regularem para pernas e cabo espia, com certificado de aprovação do Ministério do Trabalho e Emprego, de boa qualidade. | C72: Unidade | D72: 1 | E72: =E30 -> 299.9 | F72: =F30 -> 167.1 | G72: =G30 -> 399 | H72: 299.9 | I72: 299.9 | J72: 24.99
A73: Óculos de proteção, material de armação náilon, tipo lente antiembaçante, cor da lente cinza, lente de policarbonato, anti-risco, cordão de segurança, proteção UV, com certificado de aprovação do Ministério do Trabalho e Emprego, de boa qualidade | C73: Unidade | D73: 1 | E73: =E7 -> 29.03 | F73: =F7 -> 44.49 | G73: =G7 -> 37 | H73: 37 | I73: 37 | J73: 3.08
A74: Par de calçado: bota de segurança, material PVC - cloreto de polivinila, sola de borracha antiderrapante, tipo cano longo, para uso de serviços gerais, com certificado de aprovação do Ministério do Trabalho e Emprego, de boa qualidade. | C74: Par | D74: 1 | E74: =E8 -> 65.9 | F74: =F8 -> 49.9 | G74: =G8 -> 78.9 | H74: 65.9 | I74: 65.9 | J74: 5.49
A75: Par de calçado: botina de segurança, solado baixo, vaqueta relax, poliuretano (pu) bi- densidade, hidrofugado, elástico nas laterais/recoberto, acolchoado, palmilha de couro antibacteriana, biqueira plástica, com certificado de aprovação do Ministério do do Ministério do Trabalho e Emprego, de boa qualidade. | C75: Par | D75: 1 | E75: =E9 -> 65 | F75: =F9 -> 59.9 | G75: =G9 -> 66.4 | H75: 65 | I75: 65 | J75: 5.42
A76: Par de luvas de raspa de couro, cano longo, com certificado de aprovação do Ministério do Trabalho e Emprego, de boa qualidade. | C76: Par | D76: 1 | E76: =E11 -> 25.4 | F76: =F11 -> 23.9 | G76: =G11 -> 21.55 | H76: 23.9 | I76: 23.9 | J76: 1.99
A77: Par de luva de segurança, algodão e poliester, segurança e proteção individual, tricotada, sem costura, 04 fios, com certificado de aprovação do Ministério do Trabalho e Emprego, de boa qualidade. | C77: Par | D77: 1 | E77: =E35 -> 13.9 | F77: =F35 -> 13.99 | G77: =G35 -> 12.9 | H77: 13.9 | I77: 13.9 | J77: 1.16
A78: Par de luvas nitrilicas para manuseio de produtos químico, com certificado de aprovação do Ministério do Trabalho e Emprego, de boa qualidade. | C78: Par | D78: 1 | E78: =E10 -> 42.78 | F78: =F10 -> 10.8 | G78: =G10 -> 19.9 | H78: 19.9 | I78: 19.9 | J78: 1.66
A79: TOTAL | D79: - | E79: - | F79: - | G79: - | H79: - | I79: =SUM(I70:I78) -> 661.4 | J79: =SUM(J70:J78) -> 55.12
A80: VALOR MENSAL POR POSTO (1 ENCARREGADO) | J80: =J79 -> 55.12

Sheet Equipamentos
A1: Ministério de Desenvolvimento Regional - MDR Companhia de Desenvolvimento dos Vales do São Francisco e do Parnaíba 3ª Superintendência Regional
A5: INSUMOS DIVERSOS - AJUDANTE DE MANUTENÇÃO PREDIAL
A6: DESCRIÇÃO | B6: REFERÊNCIA | C6: UND | D6: QUANT. FORNECIDA POR ANO | E6: COTAÇÃO I | F6: COTAÇÃO II | G6: COTAÇÃO III | H6: PREÇO MEDIANO PRATICADO NO MERCADO (R$) | I6: CUSTO ANUAL
A7: Caixa de ferramentas com cadeado contendo conjunto de martelos, conjunto de chaves de fenda, estrela, halem e de boca, conjunto de alicates (tipo universal com isolamento até 1.000 V, de pressão, amperímetro, de bico, de corte, para grimpar cabo de rede, etc.) | B7: Vonder, Bosch ou similar | C7: Unidade | D7: 2 | E7: 219.19 | F7: 287.06 | G7: 276.29 | H7: =MEDIAN(E7,F7,G7) -> 276.29 | I7: =D7*H7 -> 552.58
A8: Cavadeira 02 (dois) cabos, com batente especial para impossibilitar o choque entre as mãos do usuário, duplo parafuso para fixação do cabo à pá, cabos de madeira de origem renovável selecionados e encerados, lâmina resistente produzida em aço. | B8: Tramontina ou similar | C8: Unidade | D8: 1 | E8: 89.9 | F8: 74.9 | G8: 45.66 | H8: 74.9 | I8: 74.9
A9: Enxada com cabo de madeira de origem renovável, forjada em aço carbono especial de alta qualidade, cabo com sistema de encabamento de bucha plástica. | B9: Tramontina ou similar | C9: Unidade | D9: 2 | E9: 59 | F9: 71.68 | G9: 78.99 | H9: 71.68 | I9: 143.36
A10: Mangueira de borracha, reforçada, 50 metros. | B10: - | C10: Unidade | D10: 2 | E10: 244.19 | F10: 219.9 | G10: 180 | H10: 219.9 | I10: 439.8
A11: Pá de bico, com cabo de madeira de origem renovável, fabricada em aço carbono especial de alta qualidade. | B11: Tramontina ou similar | C11: Unidade | D11: 2 | E11: 50.05 | F11: 49.99 | G11: 56.22 | H11: 50.05 | I11: 100.1
A12: Picareta, forjada em aço, cabo de madeira. | B12: Tramontina ou simila | C12: Unidade | D12: 2 | E12: 115 | F12: 129 | G12: 104.04 | H12: 115 | I12: 230
A13: Alicate amperímetro digital. | B13: Minipa ou similar | C13: Unidade | D13: 2 | E13: 141.55 | F13: 160.36 | G13: 132.9 | H13: 141.55 | I13: 283.1
A14: Alicate de bico, isolado 1000 W | B14: Tramontina ou similar | C14: Unidade | D14: 2 | E14: 44.9 | F14: 35.49 | G14: 39.1 | H14: 39.1 | I14: 78.2
A15: Alicate de corte. | B15: Tramontina ou similar | C15: Unidade | D15: 2 | E15: 22.9 | F15: 32.4 | G15: 35.49 | H15: 32.4 | I15: 64.8
A16: Alicate de pressão | B16: Tramontina ou similar | C16: Unidade | D16: 2 | E16: 53.9 | F16: 44.9 | G16: 44.59 | H16: 44.9 | I16: 89.8
A17: Alicate tipo universal com isolamento para 1.000 V. | B17: Tramontina ou similar | C17: Unidade | D17: 2 | E17: 28.9 | F17: 35.9 | G17: 33.38 | H17: 33.38 | I17: 66.76
A18: Arco de serra. | B18: Tramontina ou similar | C18: Unidade | D18: 2 | E18: 40.9 | F18: 38 | G18: 31.9 | H18: 38 | I18: 76
A19: Arrebitador. | B19: Bralimpia/CERTEC ou similar | C19: Unidade | D19: 2 | E19: 32.9 | F19: 38.99 | G19: 49.9 | H19: 38.99 | I19: 77.98
A20: Carro de mão com chassi metálico, roda de pneu maciço com bucha plástica, capacidade total mínima de 50 litros. | B20: Tramontina ou similar | C20: Unidade | D20: 1 | E20: 229.9 | F20: 237.4 | G20: 239.9 | H20: 237.4 | I20: 237.4
A21: Chave de teste (eletricidade). | B21: Tramontina ou similar | C21: Unidade | D21: 2 | E21: 11.99 | F21: 18.85 | G21: 14.25 | H21: 14.25 | I21: 28.5
A22: Chave grifo nº 36 | B22: Vonder, Bosch ou similar | C22: Unidade | D22: 2 | E22: 100.07 | F22: 47.3 | G22: 91.99 | H22: 91.99 | I22: 183.98
A23: Chave inglesa, 12 polegadas | B23: Tramontina ou similar | C23: Unidade | D23: 2 | E23: 49.97 | F23: 81 | G23: 50.82 | H23: 50.82 | I23: 101.64
A24: Escova de aço, fio trançado de 0,5mm. | B24: Makita ou similar | C24: Unidade | D24: 2 | E24: 19.9 | F24: 21.64 | G24: 38.55 | H24: 21.64 | I24: 43.28
A25: Ferro de solda (com solda), mínimo de 80W de pico | B25: - | C25: Unidade | D25: 2 | E25: 62.99 | F25: 78.4 | G25: 79.9 | H25: 78.4 | I25: 156.8
A26: Jogo de brocas de videa, aço rápido e aço carbono. | B26: Makita ou similar | C26: Unidade | D26: 2 | E26: 74.9 | F26: 43.68 | G26: 50 | H26: 50 | I26: 100
A27: Jogo de lima para metal, mínimo 6 peças. | B27: - | C27: Unidade | D27: 2 | E27: 49 | F27: 74.95 | G27: 39.75 | H27: 49 | I27: 98
A28: Jogo de serra copo para parede mínimo 8 peças. | B28: Makita ou similar | C28: Unidade | D28: 1 | E28: 50.33 | F28: 39.04 | G28: 57.9 | H28: 50.33 | I28: 50.33
A29: Serras para aço (para arco de serra). | B29: Tramontina ou similar | C29: Unidade | D29: 12 | E29: 39.9 | F29: 14.94 | G29: 13 | H29: 14.94 | I29: 179.28
A30: Sonda guia (10m). | B30: Vonder, Bosch ou similar | C30: Unidade | D30: 1 | E30: 44.99 | F30: 69.9 | G30: 84.99 | H30: 69.9 | I30: 69.9
A31: Trena de 5 mm. | B31: - | C31: Unidade | D31: 2 | E31: 44.95 | F31: 32.99 | G31: 30 | H31: 32.99 | I31: 65.98
A32: Alavanca para escavar | B32: - | C32: Unidade | D32: 1 | E32: 126.55 | F32: 105.8 | G32: 103.65 | H32: 105.8 | I32: 105.8
A33: Alavanca tipo pé de cabra. | B33: - | C33: Unidade | D33: 1 | E33: 79.99 | F33: 75.93 | G33: 68.77 | H33: 75.93 | I33: 75.93
A34: Catraca esticadora de arame. | B34: - | C34: Unidade | D34: 1 | E34: 24.9 | F34: 15 | G34: 19 | H34: 19 | I34: 19
A35: Colher de pedreiro | B35: Tramontina ou similar | C35: Unidade | D35: 2 | E35: 34.9 | F35: 30.64 | G35: 21.06 | H35: 30.64 | I35: 61.28
A36: Facão. | B36: Tramontina ou similar | C36: Unidade | D36: 2 | E36: 39.4 | F36: 35.6 | G36: 19.79 | H36: 35.6 | I36: 71.2
A37: Foice com cabo de madeira de origem renovável, forjada em aço carbono especial de alta qualidade, cabo com sistema de encabamento de bucha plástica. | B37: Tramontina ou similar | C37: Unidade | D37: 2 | E37: 68.99 | F37: 72.9 | G37: 57.59 | H37: 68.99 | I37: 137.98
A38: Roçadeira lateral, movida a gasolina, potência mínima de 1.700 W, lâmina de 3 (três) ou 4 (quatro) pontas em aço, peso líquido máximo até 7,7 kg. | B38: Still ou similar | C38: Unidade | D38: 2 | E38: 685 | F38: 729 | G38: 801 | H38: 729 | I38: 1458
A39: TOTAL | D39: - | E39: - | F39: - | G39: - | H39: - | I39: =SUM(I7:I38) -> 5521.66
A40: DEPRECIAÇÃO (adotado o prazo de 5 anos e valor residual de 20%) | I40: 73.62
A41: MANUTENÇÃO (adotado de 0,5% a.m) | I41: =I39*0.005 -> 27.61
A42: DEPRECIAÇÃO + MANUTENÇÃO (Valor Mensal) | I42: =I40+I41 -> 101.23
A47: INSUMOS DIVERSOS - ELETRICISTA
A48: DESCRIÇÃO | B48: REFERÊNCIA | C48: UND | D48: QUANT. FORNECIDA POR ANO | E48: COTAÇÃO I | F48: COTAÇÃO II | G48: COTAÇÃO III | H48: PREÇO MEDIANO PRATICADO NO MERCADO (R$) | I48: CUSTO ANUAL
A49: Caixa de ferramentas com cadeado contendo conjunto de martelos, conjunto de chaves de fenda, estrela, halem e de boca, conjunto de alicates (tipo universal com isolamento até 1.000 V, de pressão, amperímetro, de bico, de corte, para grimpar cabo de rede, etc.) | B49: Vonder, Bosch ou similar | C49: Unidade | D49: 1 | E49: =E7 -> 219.19 | F49: =F7 -> 287.06 | G49: =G7 -> 276.29 | H49: =MEDIAN(E49,F49,G49) -> 276.29 | I49: =D49*H49 -> 276.29
A50: Alicate amperímetro digital. | B50: Minipa ou similar | C50: Unidade | D50: 1 | E50: =E13 -> 141.55 | F50: =F13 -> 160.36 | G50: =G13 -> 132.9 | H50: 141.55 | I50: 141.55
A51: Alicate de bico, isolado 1000 W | B51: Tramontina ou similar | C51: Unidade | D51: 1 | E51: 44.9 | F51: 35.49 | G51: 39.1 | H51: 39.1 | I51: 39.1
A52: Alicate de corte. | B52: Tramontina ou similar | C52: Unidade | D52: 1 | E52: 22.9 | F52: 32.4 | G52: 35.49 | H52: 32.4 | I52: 32.4
A53: Alicate de pressão | B53: Tramontina ou similar | C53: Unidade | D53: 1 | E53: 53.9 | F53: 44.9 | G53: 44.59 | H53: 44.9 | I53: 44.9
A54: Alicate tipo universal com isolamento para 1.000 V. | B54: Tramontina ou similar | C54: Unidade | D54: 1 | E54: 28.9 | F54: 35.9 | G54: 33.38 | H54: 33.38 | I54: 33.38
A55: Arco de serra. | B55: Tramontina ou similar | C55: Unidade | D55: 1 | E55: 40.9 | F55: 38 | G55: 31.9 | H55: 38 | I55: 38
A56: Chave de teste (eletricidade). | B56: Tramontina ou similar | C56: Unidade | D56: 1 | E56: =E21 -> 11.99 | F56: =F21 -> 18.85 | G56: =G21 -> 14.25 | H56: 14.25 | I56: 14.25
A57: Chave grifo nº 36 | B57: Vonder, Bosch ou similar | C57: Unidade | D57: 1 | E57: =E22 -> 100.07 | F57: =F22 -> 47.3 | G57: =G22 -> 91.99 | H57: 91.99 | I57: 91.99
A58: Chave inglesa, 12 polegadas | B58: Tramontina ou similar | C58: Unidade | D58: 1 | E58: =E23 -> 49.97 | F58: =F23 -> 81 | G58: =G23 -> 50.82 | H58: 50.82 | I58: 50.82
A59: Ferro de solda (com solda), mínimo de 80W de pico | B59: - | C59: Unidade | D59: 1 | E59: =E25 -> 62.99 | F59: =F25 -> 78.4 | G59: =G25 -> 79.9 | H59: 78.4 | I59: 78.4
A60: Serras para aço (para arco de serra). | B60: Tramontina ou similar | C60: Unidade | D60: 6 | E60: =E29 -> 39.9 | F60: =F29 -> 14.94 | G60: =G29 -> 13 | H60: 14.94 | I60: 89.64
A61: Sonda guia (10m). | B61: Vonder, Bosch ou similar | C61: Unidade | D61: 1 | E61: =E30 -> 44.99 | F61: =F30 -> 69.9 | G61: =G30 -> 84.99 | H61: 69.9 | I61: 69.9
A62: Trena de 5 mm. | B62: - | C62: Unidade | E62: =E31 -> 44.95 | F62: =F31 -> 32.99 | G62: =G31 -> 30 | H62: 32.99 | I62: 0
A63: TOTAL | D63: - | E63: - | F63: - | G63: - | H63: - | I63: =SUM(I49:I62) -> 1000.62
A64: DEPRECIAÇÃO (adotado o prazo de 5 anos e valor residual de 20%) | I64: 13.34
A65: MANUTENÇÃO (adotado de 0,5% a.m) | I65: =I63*0.005 -> 5
A66: DEPRECIAÇÃO + MANUTENÇÃO (Valor Mensal) | I66: =I64+I65 -> 18.34

Sheet Material
A1: Ministério de Desenvolvimento Regional - MDR Companhia de Desenvolvimento dos Vales do São Francisco e do Parnaíba 3ª Superintendência Regional
A5: INSUMOS DIVERSOS - AUXILIAR DE SERVIÇOS GERAIS
A6: DESCRIÇÃO | B6: REFERÊNCIA | C6: UND | D6: QUANT. FORNECIDA POR ANO | E6: COTAÇÃO I | F6: COTAÇÃO II | G6: COTAÇÃO III | H6: PREÇO MEDIANO PRATICADO NO MERCADO (R$) | I6: CUSTO ANUAL | J6: CUSTO MENSAL
A7: Água sanitária de 1ª qualidade, 5 litros. | B7: - | C7: Unidade | D7: 60 | E7: 8.75 | F7: 13.6 | G7: 17.1 | H7: =MEDIAN(E7:G7) -> 13.6 | I7: =D7*H7 -> 816 | J7: =I7/12 -> 68
A8: Álcool 70% em gel higienizante antiséptico e hidratante, de 1ª qualidade, 5 litros, para ser utilizado em dispensers tipo saboneteira 800 ml. | B8: - | C8: Unidade | D8: 12 | E8: 71.99 | F8: 75 | G8: 59.99 | H8: 71.99 | I8: 863.88 | J8: 71.99
A9: Álcool liquido, de 1ª qualidade, 70°, 5 litros. | B9: - | C9: Unidade | D9: 36 | E9: 89.7 | F9: 35.9 | G9: 44.55 | H9: 44.55 | I9: 1603.8 | J9: 133.65
A10: Balde duas águas, capacidade mínima de 30 litros, com rodas e espremedor. (MOP) | B10: - | C10: Unidade | D10: 12 | E10: 104.13 | F10: 144.9 | G10: 109.9 | H10: 109.9 | I10: 1318.8 | J10: 109.9
A11: Balde plástico com capacidade para 12 litros | B11: - | C11: Unidade | D11: 3 | E11: 37 | F11: 29.9 | G11: 31.9 | H11: 31.9 | I11: 95.7 | J11: 7.98
A12: Desentupidor de ralos e vasos sanitários, em aço, mínimo de 15m. | B12: - | C12: Unidade | D12: 1 | E12: 26.9 | F12: 44.91 | G12: 31.5 | H12: 31.5 | I12: 31.5 | J12: 2.63
A13: Desinfetante de uso geral 5 litros. | B13: - | C13: Unidade | D13: 36 | E13: 14.07 | F13: 14.5 | G13: 10.19 | H13: 14.07 | I13: 506.52 | J13: 42.21
A14: Desodorizador de ambiente, fragância lavanda, 360ml | B14: - | C14: Unidade | D14: 72 | E14: 27.9 | F14: 19.11 | G14: 15.9 | H14: 19.11 | I14: 1375.92 | J14: 114.66
A15: Detergente com ação desodorizadora, galão de 5 litros. (limpa piso) | B15: - | C15: Unidade | D15: 48 | E15: 89 | F15: 59 | G15: 78.9 | H15: 78.9 | I15: 3787.2 | J15: 315.6
A16: Detergente líquido, de 1ª qualidade, neutro biodegradável, para lavar louça, 500ml, caixa com 24 unidades. | B16: - | C16: Unidade | D16: 240 | E16: 2.29 | F16: 1.81 | G16: 1.35 | H16: 1.81 | I16: 434.4 | J16: 36.2
A17: Limpador multiuso 500ml . | B17: - | C17: Unidade | D17: 60 | E17: 3 | F17: 4.89 | G17: 4.99 | H17: 4.89 | I17: 293.4 | J17: 24.45
A18: Dispenser para álcool gel. | B18: - | C18: Unidade | D18: 14 | E18: 28.49 | F18: 34.19 | G18: 29.99 | H18: 29.99 | I18: 419.86 | J18: 34.99
A19: Dispenser para papel higiênico interfolhado, 500 m. | B19: - | C19: Unidade | D19: 25 | E19: 34.9 | F19: 42.74 | G19: 36.9 | H19: 36.9 | I19: 922.5 | J19: 76.88
A20: Dispenser para papel toalha interfolhado. | B20: - | C20: Unidade | D20: 13 | E20: 28.49 | F20: 37.5 | G20: 28.99 | H20: 28.99 | I20: 376.87 | J20: 31.41
A21: Dispenser para sabonete líquido. | B21: - | C21: Unidade | D21: 11 | E21: =E18 -> 28.49 | F21: =F18 -> 34.19 | G21: =G18 -> 29.99 | H21: 29.99 | I21: 329.89 | J21: 27.49
A22: Escova , cepa plástica, cerdas em polipropileno, multiuso, oval. | B22: - | C22: Unidade | D22: 2 | E22: 6.55 | F22: 10.9 | G22: 6.99 | H22: 6.99 | I22: 13.98 | J22: 1.17
A23: Espanador de pena de avestruz. | B23: - | C23: Unidade | D23: 192 | E23: 21.8 | F23: 28.9 | G23: 19.94 | H23: 21.8 | I23: 4185.6 | J23: 348.8
A24: Esponja de fibra dupla face | B24: - | C24: Unidade | D24: 120 | E24: 1 | F24: 2.55 | G24: 0.99 | H24: 1 | I24: 120 | J24: 10
A25: Esponja para lavagem de automóvel | B25: - | C25: Unidade | D25: 6 | E25: 8.9 | F25: 19.87 | G25: 12.4 | H25: 12.4 | I25: 74.4 | J25: 6.2
A26: Flanela branca 100% algodão. | B26: - | C26: Pacote com 12 und. | D26: 16 | E26: 34.5 | F26: 24.5 | G26: 29.99 | H26: 29.99 | I26: 479.84 | J26: 39.99
A27: Lã de aço, pacote com 8 unidades. | B27: - | C27: Pacote com 8 und. | D27: 24 | E27: 3.1 | F27: 3.45 | G27: 3.19 | H27: 3.19 | I27: 76.56 | J27: 6.38
A28: Limpa vidros concentrado, unidade de 500ml. | C28: Unidade | D28: 2 | E28: 10.49 | F28: 16.58 | G28: 10.79 | H28: 10.79 | I28: 21.58 | J28: 1.8
A29: Óleo Lustra Móveis (lavanda) ,unidades de 200 ml. | C29: Unidade | D29: 60 | E29: 12.73 | F29: 12.1 | G29: 5.5 | H29: 12.1 | I29: 726 | J29: 60.5
A30: Pá para lixo, em plástico, com cabo longo. | C30: Unidade | D30: 60 | E30: 25.46 | F30: 11.45 | G30: 18.58 | H30: 18.58 | I30: 1114.8 | J30: 92.9
A31: Pano de chão de saco alvejado para limpeza de piso | C31: Kit com 10 unidades | D31: 12 | E31: 29.5 | F31: 31.4 | G31: 25.37 | H31: 29.5 | I31: 354 | J31: 29.5
A32: Pano de prato de 1ª qualidade em algodão alvejado, borda costurada. | C32: Kit com 10 unidades | D32: 6 | E32: 27 | F32: 29.7 | G32: 24.93 | H32: 27 | I32: 162 | J32: 13.5
A33: Papel higiênico em rolo scott, extra macio e absorvente, hidrossolúvel, 100% de fibras virgens, comprimento de 300 m, embalagem com 08 rolos cada. | C33: Embalagem com 08 rolos | D33: 96 | E33: 69.9 | F33: 34.11 | G33: 51.7 | H33: 51.7 | I33: 4963.2 | J33: 413.6
A34: Papel Toalha, branco, 3 dobras, pct. c/ 2.400 fls. (100 % celulose) | C34: Pacote com 2.400 fls. | D34: 240 | E34: 11.29 | F34: 19 | G34: 19.99 | H34: 19 | I34: 4560 | J34: 380
A35: Pastilhas sanitárias adesivas. | B35: - | C35: caixa | D35: 120 | E35: 2.49 | F35: 4.4 | G35: 3.95 | H35: 3.95 | I35: 474 | J35: 39.5
A36: Placas sinalizadoras "Piso Molhado". | C36: Unidade | D36: 6 | E36: 33.55 | F36: 29.99 | G36: 28.99 | H36: 29.99 | I36: 179.94 | J36: 15
A37: Pulverizador spray (recarregável), 500 ml. | C37: Unidade | D37: 60 | E37: 9.98 | F37: 14.9 | G37: 9.9 | H37: 9.98 | I37: 598.8 | J37: 49.9
A38: Rodo com duas borrachas - 40cm de largura, com cabo. | C38: Unidade | D38: 48 | E38: 39.99 | F38: 32.66 | G38: 31.05 | H38: 32.66 | I38: 1567.68 | J38: 130.64
A39: Sabão em barra, de 1ª qualidade, pacote com 5 unidades. | C39: Pacote com 5 unidades | D39: 96 | E39: 11.68 | F39: 14.9 | G39: 13.99 | H39: 13.99 | I39: 1343.04 | J39: 111.92
A40: Sabão em pó 1kg, caixa com 20 unidades. | C40: Caixa com 20 Unidades | D40: 3 | E40: 5.64 | F40: 6.15 | G40: 8.99 | H40: 6.15 | I40: 18.45 | J40: 1.54
A41: Sabonete líquido, de odor agradável, com ph neutro concentrado, 5 litros. | C41: Unidade | D41: 48 | E41: 32 | F41: 17.99 | G41: 35.99 | H41: 32 | I41: 1536 | J41: 128
A42: Saco para lixo, de 200 litros, fardo com 100 unidades. | C42: Fardo com 100 Unidades | D42: 24 | E42: 174.99 | F42: 96.9 | G42: 125.99 | H42: 125.99 | I42: 3023.76 | J42: 251.98
A43: Saco para lixo, de 100 litros, fardo com 100 unidades. | C43: Fardo com 100 Unidades | D43: 60 | E43: 44.9 | F43: 51.2 | G43: 54.9 | H43: 51.2 | I43: 3072 | J43: 256
A44: Saco para lixo, de 40 litros, fardo com 100 unidades. | C44: Fardo com 100 Unidades | D44: 60 | E44: 35.91 | F44: 37.9 | G44: 43 | H44: 37.9 | I44: 2274 | J44: 189.5
A45: Saponáceo cremoso, 1ª qualidade, com 300ml. | C45: Unidade | D45: 48 | E45: 10.84 | F45: 8.49 | G45: 10.29 | H45: 10.29 | I45: 493.92 | J45: 41.16
A46: Shampoo concentrado lava auto de 1ª qualidade, galão 5 litros | C46: Unidade | D46: 6 | E46: 52.9 | F46: 38 | G46: 41.9 | H46: 41.9 | I46: 251.4 | J46: 20.95
A47: Vassoura de nylon com cabo. | C47: Unidade | D47: 96 | E47: 17.29 | F47: 15.65 | G47: 22.99 | H47: 17.29 | I47: 1659.84 | J47: 138.32
A48: Vassoura de pelo com 40cm de largura, com cabo. | C48: Unidade | D48: 96 | E48: 45.6 | F48: 24.43 | G48: 23.15 | H48: 24.43 | I48: 2345.28 | J48: 195.44
A49: Vassoura para limpeza de teto com cabo. | C49: Unidade | D49: 8 | E49: 137.9 | F49: 179.9 | G49: 168.46 | H49: 168.46 | I49: 1347.68 | J49: 112.31
A50: Vassourinha para limpar vaso. | C50: Unidade | D50: 48 | E50: 19.43 | F50: 29.29 | G50: 27.23 | H50: 27.23 | I50: 1307.04 | J50: 108.92
A51: Lixeia para banheiro com tampa de pedal, 12 Litros (branca) | C51: Unidade | D51: 27 | E51: 39.35 | F51: 40.7 | G51: 44.67 | H51: 40.7 | I51: 1098.9 | J51: 91.58
A52: Lixeira para escritório metal aramado 12L. | C52: Unidade | D52: 93 | E52: 24.66 | F52: 27.4 | G52: 30.12 | H52: 27.4 | I52: 2548.2 | J52: 212.35
A53: Lixeira conteiner 240 Litros com adesivo "lixo orgânico" | C53: Unidade | D53: 2 | E53: 349.9 | F53: 341.81 | G53: 330 | H53: 341.81 | I53: 683.62 | J53: 56.97
A54: Lixeira 30 L com pedal | C54: Unidade | D54: 10 | E54: 67.99 | F54: 37.36 | G54: 39.52 | H54: 39.52 | I54: 395.2 | J54: 32.93
A55: Lixeira para escritório, 12 L, com tampa, pedal e adesivo "lixo organico" | C55: Unidade | D55: 20 | E55: 39.35 | F55: 40.7 | G55: 44.67 | H55: 40.7 | I55: 814 | J55: 67.83
A56: Lixeira conteiner 1000 Litros com pedal e adesivo "lixo reciclável". | C56: Unidade | D56: 2 | E56: 1490 | F56: 1190 | G56: 1529.1 | H56: 1490 | I56: 2980 | J56: 248.33
A57: TOTAL | D57: - | E57: - | F57: - | G57: - | H57: - | I57: =SUM(I7:I56) -> 60040.95 | J57: =SUM(J7:J56) -> 5003.45
A58: VALOR MENSAL POR POSTO (14 ASG) | J58: =J57/14 -> 357.39
A104: INSUMOS DIVERSOS - COPEIRA
A105: DESCRIÇÃO | B105: REFERÊNCIA | C105: UND | D105: QUANT. FORNECIDA POR ANO | E105: COTAÇÃO I | F105: COTAÇÃO II | G105: COTAÇÃO III | H105: PREÇO MÉDIO PRATICADO NO MERCADO (R$) | I105: CUSTO ANUAL | J105: CUSTO MENSAL
A106: Adoçante líquido de sucralose, de 75 a 100ml, produto registrado no Ministério da Saúde. | C106: Unidade | D106: 30 | E106: 6 | F106: 4.29 | G106: 3.01 | H106: =MEDIAN(E106:G106) -> 4.29 | I106: =D106*H106 -> 128.7 | J106: =I106/12 -> 10.73
A107: Açucar cristal, 1 kg | C107: Unidade | D107: 600 | E107: 4.19 | F107: 3.99 | G107: 4.28 | H107: 4.19 | I107: 2514 | J107: 209.5
A108: Café moído e torrado a vácuo extraforte 500g | C108: Unidade | D108: 720 | E108: 15.99 | F108: 17.15 | G108: 13.99 | H108: 15.99 | I108: 11512.8 | J108: 959.4
A109: TOTAL | D109: - | E109: - | F109: - | G109: - | H109: - | I109: =SUM(I106:I108) -> 14155.5 | J109: =SUM(J106:J108) -> 1179.63
A110: VALOR MENSAL POR POSTO ( 1 COPEIRA) | J110: =J109/1 -> 1179.63

Sheet Uniformes
A1: Ministério de Desenvolvimento Regional - MDR Companhia de Desenvolvimento dos Vales do São Francisco e do Parnaíba 3ª Superintendência Regional
A5: INSUMOS DIVERSOS - AUXILIAR DE SERVIÇOS GERAIS
A6: DESCRIÇÃO | B6: REFERÊNCIA | C6: UND | D6: QUANT. FORNECIDA POR ANO | E6: COTAÇÃO I | F6: COTAÇÃO II | G6: COTAÇÃO III | H6: PREÇO MEDIANO PRATICADO NO MERCADO (R$) | I6: CUSTO ANUAL | J6: CUSTO MENSAL
A7: Calça comprida com elástico e cordão, em tecido garbardine com elastano. | C7: Unidade | D7: =14*4 -> 56 | E7: 42.99 | F7: 49.99 | G7: 45.9 | H7: =MEDIAN(E7:G7) -> 45.9 | I7: =D7*H7 -> 2570.4 | J7: =I7/12 -> 214.2
A8: Camiseta malha fria, com gola esporte, mangas curtas, com emblema da empresa pintado no lado superior esquerdo, de boa qualidade. | C8: Unidade | D8: 56 | E8: 23.9 | F8: 29.9 | G8: 26.9 | H8: 26.9 | I8: 1506.4 | J8: 125.53
A9: Camiseta com gola simples, de mangas longas, proteção UV 50, sem abotoamento, com logo marca da empresa; | C9: Unidade | D9: 56 | E9: 29.63 | F9: 36.01 | G9: 32 | H9: 32 | I9: 1792 | J9: 149.33
A10: Par de meia em algodão, tipo c ano médio, de boa qualidade. | C10: Kit com 3 unidades | D10: 56 | E10: 29.36 | F10: 32.99 | G10: 29.69 | H10: 29.69 | I10: 1662.64 | J10: 138.55
A11: Par de tênis soft Works | C11: Par | D11: 56 | E11: 77.99 | F11: 113.98 | G11: 59.97 | H11: 77.99 | I11: 4367.44 | J11: 363.95
A12: Bata manga curta com botão, em tecido garbardine com elastano com emblema da empresa pintado no lado superior esquerdo, de boa qualidade. | C12: Unidade | D12: 56 | E12: 34.5 | F12: 34.99 | G12: 54.9 | H12: 34.99 | I12: 1959.44 | J12: 163.29
A13: TOTAL | I13: =SUM(I7:I12) -> 13858.32 | J13: =SUM(J7:J12) -> 1154.85
A14: VALOR MENSAL POR POSTO (14 ASG) | J14: =J13/14 -> 82.49
A32: INSUMOS DIVERSOS - COPEIRA
A33: DESCRIÇÃO | B33: REFERÊNCIA | C33: UND | D33: QUANT. FORNECIDA POR ANO | E33: COTAÇÃO I | F33: COTAÇÃO II | G33: COTAÇÃO III | H33: PREÇO MEDIANO PRATICADO NO MERCADO (R$) | I33: CUSTO ANUAL | J33: CUSTO MENSAL
A34: Calça comprida com elástico e cordão, em tecido garbardine com elastano. | C34: Unidade | D34: 4 | E34: =E7 -> 42.99 | F34: =F7 -> 49.99 | G34: =G7 -> 45.9 | H34: =MEDIAN(E34:G34) -> 45.9 | I34: =D34*H34 -> 183.6 | J34: =I34/12 -> 15.3
A35: Camiseta malha fria, com gola esporte, mangas curtas, com emblema da empresa pintado no lado superior esquerdo, de boa qualidade. | C35: Unidade | D35: 4 | E35: 23.9 | F35: 29.9 | G35: 26.9 | H35: 26.9 | I35: 107.6 | J35: 8.97
A36: Camiseta com gola simples, de mangas longas, proteção UV 50, sem abotoamento, com logo marca da empresa; | C36: Unidade | D36: 4 | E36: 29.63 | F36: 36.01 | G36: 32 | H36: 32 | I36: 128 | J36: 10.67
A37: Par de meia em algodão, tipo c ano médio, de boa qualidade. | C37: Kit com 3 unidades | D37: 4 | E37: 29.36 | F37: 32.99 | G37: 29.69 | H37: 29.69 | I37: 118.76 | J37: 9.9
A38: Par de tênis soft Works | C38: Par | D38: 4 | E38: 77.99 | F38: 113.98 | G38: 59.97 | H38: 77.99 | I38: 311.96 | J38: 26
A39: Bata manga curta com botão, em tecido garbardine com elastano com emblema da empresa pintado no lado superior esquerdo, de boa qualidade. | C39: Unidade | D39: 4 | E39: 34.5 | F39: 34.99 | G39: 54.9 | H39: 34.99 | I39: 139.96 | J39: 11.66
A40: TOTAL | I40: =SUM(I34:I39) -> 989.88 | J40: =SUM(J34:J39) -> 82.5
A41: VALOR MENSAL POR POSTO (01 COPEIRA) | J41: =J40/1 -> 82.5
A62: INSUMOS DIVERSOS - AJUDANTE DE MANUTENÇÃO PREDIAL
A63: DESCRIÇÃO | B63: REFERÊNCIA | C63: UND | D63: QUANT. FORNECIDA POR ANO | E63: COTAÇÃO I | F63: COTAÇÃO II | G63: COTAÇÃO III | H63: PREÇO MEDIANO PRATICADO NO MERCADO (R$) | I63: CUSTO ANUAL | J63: CUSTO MENSAL
A64: Calça comprida jeans com bolsos externos. | C64: Unidade | D64: 8 | E64: 59.99 | F64: 59.79 | G64: 62.4 | H64: =MEDIAN(E64,F64,G64) -> 59.99 | I64: =D64*H64 -> 479.92 | J64: =I64/12 -> 39.99
A65: Camiseta malha fria, com gola esporte, mangas curtas, com emblema da empresa pintado no lado superior esquerdo, de boa qualidade. | C65: Unidade | D65: 8 | E65: =E8 -> 23.9 | F65: =F8 -> 29.9 | G65: =G8 -> 26.9 | H65: 26.9 | I65: 215.2 | J65: 17.93
A66: Camiseta com gola simples, de mangas longas, proteção UV 50, sem abotoamento, com logo marca da empresa; | C66: Unidade | D66: 8 | E66: =E9 -> 29.63 | F66: =F9 -> 36.01 | G66: =G9 -> 32 | H66: 32 | I66: 256 | J66: 21.33
A67: Par de meia em algodão, tipo c ano médio, de boa qualidade. | C67: Kit com 3 unidades | D67: 8 | E67: =E10 -> 29.36 | F67: =F10 -> 32.99 | G67: =G10 -> 29.69 | H67: 29.69 | I67: 237.52 | J67: 19.79
A68: Scrub manga curta com botão e bolsos externos, em tecido brim , com emblema da empresa bordado no lado superior esquerdo, de boa qualidade. | C68: Unidades | D68: 8 | E68: =E39 -> 34.5 | F68: =F39 -> 34.99 | G68: =G39 -> 54.9 | H68: 34.99 | I68: 279.92 | J68: 23.33
A69: TOTAL | I69: =SUM(I64:I68) -> 1468.56 | J69: =SUM(J64:J68) -> 122.37
A70: VALOR MENSAL POR POSTO (2 AMP) | J70: =J69/2 -> 61.19
A97: INSUMOS DIVERSOS - ELETRICISTA
A98: DESCRIÇÃO | B98: REFERÊNCIA | C98: UND | D98: QUANT. FORNECIDA POR ANO | E98: COTAÇÃO I | F98: COTAÇÃO II | G98: COTAÇÃO III | H98: PREÇO MEDIANO PRATICADO NO MERCADO (R$) | I98: CUSTO ANUAL | J98: CUSTO MENSAL
A99: Calça comprida jeans com bolsos externos. | C99: Unidade | D99: 4 | E99: =E64 -> 59.99 | F99: =F64 -> 59.79 | G99: =G64 -> 62.4 | H99: =MEDIAN(E99,F99,G99) -> 59.99 | I99: =D99*H99 -> 239.96 | J99: =I99/12 -> 20
A100: Camiseta malha fria, com gola esporte, mangas curtas, com emblema da empresa pintado no lado superior esquerdo, de boa qualidade. | C100: Unidade | D100: 4 | E100: =E8 -> 23.9 | F100: =F8 -> 29.9 | G100: =G8 -> 26.9 | H100: 26.9 | I100: 107.6 | J100: 8.97
A101: Camiseta com gola simples, de mangas longas, proteção UV 50, sem abotoamento, com logo marca da empresa; | C101: Unidade | D101: 4 | E101: =E9 -> 29.63 | F101: =F9 -> 36.01 | G101: =G9 -> 32 | H101: 32 | I101: 128 | J101: 10.67
A102: Par de meia em algodão, tipo c ano médio, de boa qualidade. | C102: Kit com 3 unidades | D102: 4 | E102: =E10 -> 29.36 | F102: =F10 -> 32.99 | G102: =G10 -> 29.69 | H102: 29.69 | I102: 118.76 | J102: 9.9
A103: Scrub manga curta com botão e bolsos externos, em tecido brim , com emblema da empresa bordado no lado superior esquerdo, de boa qualidade. | C103: Unidades | D103: 4 | E103: =E39 -> 34.5 | F103: =F39 -> 34.99 | G103: =G39 -> 54.9 | H103: 34.99 | I103: 139.96 | J103: 11.66
A104: TOTAL | I104: =SUM(I99:I103) -> 734.28 | J104: =SUM(J99:J103) -> 61.2
A105: VALOR MENSAL POR POSTO (01 ELETRICISTA) | J105: =J104/1 -> 61.2
A132: INSUMOS DIVERSOS - RECEPCIONISTA
A133: DESCRIÇÃO | B133: REFERÊNCIA | C133: UND | D133: QUANT. FORNECIDA POR ANO | E133: COTAÇÃO I | F133: COTAÇÃO II | G133: COTAÇÃO III | H133: PREÇO MEDIANO PRATICADO NO MERCADO (R$) | I133: CUSTO ANUAL | J133: CUSTO MENSAL
A134: Camisa social em tricoline, mangas curtas, com emblema da empresa bordado no lado superior esquerdo, de boa qualidade. | C134: Unidade | D134: 12 | E134: 52.87 | F134: 57.17 | G134: 58.6 | H134: =MEDIAN(E134,F134,G134) -> 57.17 | I134: =D134*H134 -> 686.04 | J134: =I134/12 -> 57.17
A135: Camisa social em tricoline, manga longa, com emblema da empresa bordado no lado superior esquerdo, de boa qualidade. | C135: Unidade | D135: 12 | E135: 59.7 | F135: 79.9 | G135: 56.9 | H135: =MEDIAN(E135,F135,G135) -> 59.7 | I135: =D135*H135 -> 716.4 | J135: =I135/12 -> 59.7
A136: TOTAL | I136: =SUM(I134,I135) -> 1402.44 | J136: =SUM(J134,J135) -> 116.87
A137: VALOR MENSAL POR POSTO (3 RECEPCIONISTAS) | J137: =J136/3 -> 38.96
A175: INSUMOS DIVERSOS - APOIO TÉCNICO ADMINISTRATIVO
A176: DESCRIÇÃO | B176: REFERÊNCIA | C176: UND | D176: QUANT. FORNECIDA POR ANO | E176: COTAÇÃO I | F176: COTAÇÃO II | G176: COTAÇÃO III | H176: PREÇO MEDIANO PRATICADO NO MERCADO (R$) | I176: CUSTO ANUAL | J176: CUSTO MENSAL
A177: Camisa social em tricoline, mangas curtas, com emblema da empresa bordado no lado superior esquerdo, de boa qualidade. | C177: Unidade | D177: 4 | E177: =E134 -> 52.87 | F177: =F134 -> 57.17 | G177: =G134 -> 58.6 | H177: =MEDIAN(E177,F177,G177) -> 57.17 | I177: =D177*H177 -> 228.68 | J177: =I177/12 -> 19.06
A178: Camisa social em tricoline, manga longa, com emblema da empresa bordado no lado superior esquerdo, de boa qualidade. | C178: Unidade | D178: 4 | E178: =E135 -> 59.7 | F178: =F135 -> 79.9 | G178: =G135 -> 56.9 | H178: =MEDIAN(E178,F178,G178) -> 59.7 | I178: =D178*H178 -> 238.8 | J178: =I178/12 -> 19.9
A179: TOTAL | I179: =SUM(I177,I178) -> 467.48 | J179: =SUM(J177,J178) -> 38.96
A180: VALOR MENSAL POR POSTO (01 APOIO TÉCNICO ADMINISTRATIVO) | J180: =J179/1 -> 38.96
A218: INSUMOS DIVERSOS - ALMOXARIFE
A219: DESCRIÇÃO | B219: REFERÊNCIA | C219: UND | D219: QUANT. FORNECIDA POR ANO | E219: COTAÇÃO I | F219: COTAÇÃO II | G219: COTAÇÃO III | H219: PREÇO MEDIANO PRATICADO NO MERCADO (R$) | I219: CUSTO ANUAL | J219: CUSTO MENSAL
A220: Calça comprida jeans com bolsos externos. | C220: Unidade | D220: 4 | E220: =E64 -> 59.99 | F220: =F64 -> 59.79 | G220: =G64 -> 62.4 | H220: =MEDIAN(E220,F220,G220) -> 59.99 | I220: =D220*H220 -> 239.96 | J220: =I220/12 -> 20
A221: Camiseta malha fria, com gola esporte, mangas curtas, com emblema da empresa pintado no lado superior esquerdo, de boa qualidade. | C221: Unidade | D221: 4 | E221: =E8 -> 23.9 | F221: =F8 -> 29.9 | G221: =G8 -> 26.9 | H221: 26.9 | I221: 107.6 | J221: 8.97
A222: Camiseta com gola simples, de mangas longas, proteção UV 50, sem abotoamento, com logo marca da empresa; | C222: Unidade | D222: 4 | E222: =E9 -> 29.63 | F222: =F9 -> 36.01 | G222: =G9 -> 32 | H222: 32 | I222: 128 | J222: 10.67
A223: Par de meia em algodão, tipo c ano médio, de boa qualidade. | C223: Kit com 3 unidades | D223: 4 | E223: =E10 -> 29.36 | F223: =F10 -> 32.99 | G223: =G10 -> 29.69 | H223: 29.69 | I223: 118.76 | J223: 9.9
A224: Scrub manga curta com botão e bolsos externos, em tecido brim , com emblema da empresa bordado no lado superior esquerdo, de boa qualidade. | C224: Unidades | D224: 4 | E224: =E39 -> 34.5 | F224: =F39 -> 34.99 | G224: =G39 -> 54.9 | H224: 34.99 | I224: 139.96 | J224: 11.66
A225: TOTAL | I225: =SUM(I220:I224) -> 734.28 | J225: =SUM(J220:J224) -> 61.2
A226: VALOR MENSAL POR POSTO (01 ALMOXARIFE) | J226: =J225/1 -> 61.2
A253: INSUMOS DIVERSOS - ENCARREGADO
A254: DESCRIÇÃO | B254: REFERÊNCIA | C254: UND | D254: QUANT. FORNECIDA POR ANO | E254: COTAÇÃO I | F254: COTAÇÃO II | G254: COTAÇÃO III | H254: PREÇO MEDIANO PRATICADO NO MERCADO (R$) | I254: CUSTO ANUAL | J254: CUSTO MENSAL
A255: Camisa social em tricoline, mangas curtas, com emblema da empresa bordado no lado superior esquerdo, de boa qualidade. | C255: Unidade | D255: 4 | E255: =E134 -> 52.87 | F255: =F134 -> 57.17 | G255: =G134 -> 58.6 | H255: =MEDIAN(E255,F255,G255) -> 57.17 | I255: =D255*H255 -> 228.68 | J255: =I255/12 -> 19.06
A256: Camisa social em tricoline, manga longa, com emblema da empresa bordado no lado superior esquerdo, de boa qualidade. | C256: Unidade | D256: 4 | E256: =E135 -> 59.7 | F256: =F135 -> 79.9 | G256: =G135 -> 56.9 | H256: =MEDIAN(E256,F256,G256) -> 59.7 | I256: =D256*H256 -> 238.8 | J256: =I256/12 -> 19.9
A257: TOTAL | I257: =SUM(I255,I256) -> 467.48 | J257: =SUM(J255,J256) -> 38.96
A258: VALOR MENSAL POR POSTO (01 ENCARREGADO) | J258: =J257/1 -> 38.96
